Cogmind - Beta 16 @@@ ROGUE MODE // 2025.12.24 @ 04:08:53 Player: naththebg Result: Destroyed by G-73 Enforcer with Heavy Laser Performance ------------- Evolutions (9) 4500 Regions Visited (35) 7000 Robots Destroyed (421) 2105 Value Destroyed (26282) 26282 Prototype IDs (72) 1440 Alien Tech Used (2) 400 Bonus (28645) 28645 TOTAL SCORE: 70372 Bonus ------- Triggered High Security 500 High Alert Combat Kills 6100 Follower Combat Kills 2578 Entered Garrisons 1000 Aligned with FarCom 300 Acquired ECA 300 Met Warlord at Base 500 MAIN.C Attacked Warlord 500 Warlord Defense Kills 2098 Met Warlord at Research 2000 Invited to Help at Command 2000 Destroyed MAIN.C Guards 500 Met MAIN.C 5000 Destroyed MAIN.C Shell 5000 Met Warlord at Command 2000 Friendly Fire -1731 Cogmind --------- Core Integrity 0/1600 Matter 300/300 Energy 100/100 System Corruption 11% Temperature Cool (9) Movement Core (700) Ox13 Location -1/Command Parts ------- > --- POWER (2) -------- (None) > --- PROPULSION (6) --- (None) > --- UTILITY (13) ----- Experimental Coolant Injector High-capacity Storage Unit Experimental Optical Array Experimental Core Analyzer Improved Weapon Cycler (fused) > --- WEAPON (4) ------- (None) > --- INVENTORY (20) --- (None) Peak State ------------ > --- POWER ------------ Quantum Reactor Improved Quantum Reactor > --- PROPULSION ------- Experimental Flexi-carbon Leg Improved Thunder Leg Enhanced Biometal Leg Enhanced Biometal Leg Heavy Shield Leg > --- UTILITY ---------- Advanced Cooling System Advanced Cooling System High-capacity Storage Unit Experimental Optical Array Advanced Targeting Computer Experimental Core Analyzer Experimental Core Analyzer Improved Armor Integrity Analyzer Improved Weapon Cycler Advanced Reaction Control System Improved Powered Armor Thermal Barrier Advanced Remote Shield > --- WEAPON ----------- Enhanced Nova Cannon Enhanced Hardcell Cannon Enhanced Hardcell Cannon Field Lobotomy Kit > --- INVENTORY -------- Vortex Chain Reactor Flexi-carbon Leg Biometal Leg Centrium Leg Centrium Leg Centrium Leg Experimental Matter Compressor Advanced Kinecellerator Heavy Gatling Laser Vortex Rail Vortex Rail Vortex Catalyst Activator [Rating: 209] Favorites ----------- Power Quantum Reactor Engine Heavy Ion Engine Power Core Enhanced Fission Core Reactor Quantum Reactor Propulsion Flexi-carbon Leg Treads Light Treads Leg Flexi-carbon Leg Utility Large Storage Unit Device Advanced Heat Sink Storage Large Storage Unit Processor Enhanced Optical Array Hackware Ghost Barrier Protection Improved Powered Armor Weapon KE Penetrator Energy Gun Enhanced Quantum Rifle Energy Cannon Enhanced Nova Cannon Ballistic Gun KE Penetrator Ballistic Cannon Enhanced Hardcell Cannon Launcher Long-range Missile Launcher Special Weapon Field Lobotomy Kit Slashing Weapon Tearclaws Build | -11 -10 -10 -9 -9 -9 -8 -8 -8 -8 -8 -6 -6 -6 -6 -6 -5 -5 -5 -5 -5 -5 -5 -5 -4 -4 -4 -4 -4 -4 -4 -3 -3 -2 -1 -1 ------- Run | Yrd Mat Min Mat Min Exi Min Mat Sto Gar Rec Fac Gar Fac Low Low Fac Gar Fac Gar Fac Upp Upp Zhi Pro Fac Gar Fac Upp Upp War Pro Res Res Acc Com Slots Evolved 18 | . . . 2 . . . 2 . . . 4 . . . . 2 . . . . . . . . 2 . . . . . . 2 2 2 . Power 1 | . . . . . . . . . . . . . . . . 1 . . . . . . . . . . . . . . . . . . . Propulsion 4 | . . . 1 . . . . . . . 1 . . . . . . . . . . . . . 1 . . . . . . . 1 . . Utility 11 | . . . 1 . . . 1 . . . 2 . . . . 1 . . . . . . . . 1 . . . . . . 2 1 2 . Weapon 2 | . . . . . . . 1 . . . 1 . . . . . . . . . . . . . . . . . . . . . . . . Parts Attached 228 | 5 6 1 5 . 1 . 10 . 7 2 3 17 15 3 . 14 19 14 14 3 5 2 2 . 5 7 5 . 4 16 2 8 17 5 11 Power 19 | . 1 . 1 . . . 1 . . . . 1 . 1 . 3 2 3 1 . . . . . 1 . . . 1 1 . . 1 . 1 Engine 6 | . 1 . 1 . . . 1 . . . . 1 . . . . . 2 . . . . . . . . . . . . . . . . . Core 6 | . . . . . . . . . . . . . . 1 . 3 . 1 1 . . . . . . . . . . . . . . . . Reactor 7 | . . . . . . . . . . . . . . . . . 2 . . . . . . . 1 . . . 1 1 . . 1 . 1 Propulsion 58 | 2 . . 2 . . . 2 . . 2 . 8 2 1 . 3 6 3 4 . . . . . 1 2 3 . . 2 2 3 6 . 4 Treads 10 | . . . 2 . . . 2 . . 2 . 4 . . . . . . . . . . . . . . . . . . . . . . . Leg 48 | 2 . . . . . . . . . . . 4 2 1 . 3 6 3 4 . . . . . 1 2 3 . . 2 2 3 6 . 4 Wheel . | . . . . . . . . . . . . . . . . . . . . . . . . . . . . . . . . . . . . Hover . | . . . . . . . . . . . . . . . . . . . . . . . . . . . . . . . . . . . . Flight . | . . . . . . . . . . . . . . . . . . . . . . . . . . . . . . . . . . . . Utility 91 | 1 3 1 2 . 1 . 2 . 3 . 3 4 5 . . 4 7 6 4 3 3 1 2 . 3 1 2 . 3 6 . 4 8 4 5 Device 45 | . 1 1 1 . . . 1 . 2 . 3 2 2 . . 4 3 4 1 1 2 1 . . 1 . 1 . 2 4 . 2 3 . 3 Storage 7 | 1 1 . . . . . 1 . . . . . . . . . . . . . . . 1 . . . . . . 1 . . 1 . 1 Processor 12 | . . . . . 1 . . . . . . . 1 . . . 1 1 . 1 . . . . . . 1 . . 1 . . 3 1 1 Hackware 6 | . . . . . . . . . . . . . . . . . . 1 . 1 . . . . . . . . . . . 1 . 3 . Protection 21 | . 1 . 1 . . . . . 1 . . 2 2 . . . 3 . 3 . 1 . 1 . 2 1 . . 1 . . 1 1 . . Artifact . | . . . . . . . . . . . . . . . . . . . . . . . . . . . . . . . . . . . . Weapon 60 | 2 2 . . . . . 5 . 4 . . 4 8 1 . 4 4 2 5 . 2 1 . . . 4 . . . 7 . 1 2 1 1 Energy Gun 23 | 2 2 . . . . . 4 . . . . 2 1 . . . . . 3 . 1 1 . . . 2 . . . 4 . 1 . . . Energy Cannon 1 | . . . . . . . . . . . . . . . . . . . . . . . . . . . . . . . . . 1 . . Ballistic Gun 25 | . . . . . . . 1 . 4 . . 2 5 . . 4 4 2 2 . 1 . . . . . . . . . . . . . . Ballistic Cannon 4 | . . . . . . . . . . . . . . . . . . . . . . . . . . 1 . . . 1 . . 1 1 . Launcher 4 | . . . . . . . . . . . . . 2 . . . . . . . . . . . . . . . . 1 . . . . 1 Special Weapon 2 | . . . . . . . . . . . . . . . . . . . . . . . . . . 1 . . . 1 . . . . . Impact Weapon . | . . . . . . . . . . . . . . . . . . . . . . . . . . . . . . . . . . . . Slashing Weapon 1 | . . . . . . . . . . . . . . 1 . . . . . . . . . . . . . . . . . . . . . Piercing Weapon . | . . . . . . . . . . . . . . . . . . . . . . . . . . . . . . . . . . . . Special Melee Weapon . | . . . . . . . . . . . . . . . . . . . . . . . . . . . . . . . . . . . . Unidentified Prototypes 33 | . . 1 . . . . 1 . . . . . 3 . . . . 2 . . . . 4 . 1 . . . . 10 . 4 2 . 5 Corrupted Parts 2 | . . . . . . . . . . . . . . . . . . . . . . . . . . . . . . . . . 2 . . System Corruption 3 | . . . . . . . . . . . . . . . . . . . . . . . . . . . . . . . . . 3 . . Parts Lost 68 | . . . . . . . . . 3 . 1 10 . . . . 2 3 6 1 . . . . . 3 . . 2 . . 3 . 3 31 Power 4 | . . . . . . . . . . . . . . . . . . 1 1 . . . . . . . . . . . . . . . 2 Propulsion 20 | . . . . . . . . . . . 1 4 . . . . . 1 . . . . . . . 2 . . 1 . . . . . 11 Utility 27 | . . . . . . . . . 3 . . 3 . . . . 2 1 2 1 . . . . . . . . 1 . . 1 . 2 11 Weapon 17 | . . . . . . . . . . . . 3 . . . . . . 3 . . . . . . 1 . . . . . 2 . 1 7 Highest Loss Streak 21 | . . . . . . . . . 2 . 1 5 . . . . 1 1 2 1 . . . . . 3 . . 1 . . 2 . 2 21 To Critical Strikes . | . . . . . . . . . . . . . . . . . . . . . . . . . . . . . . . . . . . . Average Backups 13 | 4 7 9 9 10 10 10 10 12 11 14 14 13 13 13 13 14 15 14 14 14 14 15 15 15 14 14 14 14 14 13 13 12 13 13 7 Power 1 | 1 1 1 1 1 1 1 1 2 2 3 3 1 . . . . 1 2 1 2 2 1 1 1 1 1 1 1 1 1 1 1 1 1 . Propulsion 2 | 2 2 2 1 . . . . . . . . 3 4 3 3 4 5 4 4 3 3 3 3 3 1 1 1 1 . . . . 2 4 3 Utility 4 | . 1 3 4 6 5 5 2 3 2 3 2 4 4 4 4 4 3 3 4 3 2 3 4 5 5 6 5 5 5 6 7 6 5 2 . Weapon 3 | . 2 3 3 3 3 3 5 6 6 6 6 4 3 4 4 3 3 3 2 4 4 5 4 4 4 4 5 5 5 3 4 3 3 4 3 Tool/Special . | . . . . . . . . . . . . . . . . . . . . . . . . . . . . . . . . . . . . Unused Backups 26 | . 3 . . . . . 2 . 1 . 1 5 2 . . 3 . 1 2 . . . . . 1 . . . . 1 1 . 3 . . Power 4 | . . . . . . . . . 1 . . 3 . . . . . . . . . . . . . . . . . . . . . . . Propulsion 8 | . 2 . . . . . . . . . . 1 . . . 3 . 1 1 . . . . . . . . . . . . . . . . Utility 8 | . . . . . . . . . . . . 1 1 . . . . . 1 . . . . . 1 . . . . 1 1 . 2 . . Weapon 6 | . 1 . . . . . 2 . . . 1 . 1 . . . . . . . . . . . . . . . . . . . 1 . . Tool/Special . | . . . . . . . . . . . . . . . . . . . . . . . . . . . . . . . . . . . . Average Slot Usage (%) 97 | . 91 100 95 100 100 100 99 100 97 100 97 95 100 99 100 97 99 98 99 99 100 99 99 100 99 98 100 100 99 97 94 94 96 94 84 Engine 3 | . 8 14 11 11 11 11 9 9 8 9 6 5 6 . . . . 3 1 . . . . . . . . . . . . . . . . Core 2 | . . . . . . . . . . . . . . 5 6 8 6 5 8 11 11 7 5 5 5 5 5 5 4 1 . . . . . Reactor 3 | . . . . . . . . . . . . . . . . . 3 1 . . . 2 5 5 5 5 5 5 5 8 10 9 8 8 5 Treads 6 | . . . 17 22 22 22 26 27 26 27 24 15 . . . . . . . . . . . . . . . . . . . . . . . Leg 18 | . 28 28 13 11 11 11 . . . . . 8 26 26 26 23 23 22 23 23 23 23 23 23 26 24 26 26 25 26 26 23 23 20 20 Device 17 | . 8 14 11 11 11 11 17 18 11 9 19 20 18 13 13 16 21 22 16 15 17 16 16 17 15 15 15 15 15 14 15 19 17 22 20 Storage 6 | . 14 14 11 11 11 11 9 9 9 9 6 6 6 6 6 5 5 5 5 5 5 5 5 5 5 5 5 5 5 5 5 4 4 4 9 Processor 7 | . . . . . . . . . . . . . 3 6 6 5 5 8 11 11 11 11 11 11 10 10 10 10 10 10 15 14 16 19 15 Protection 7 | . 4 . 8 11 10 11 9 9 13 18 13 9 10 13 13 11 6 2 5 5 5 5 5 5 9 10 10 10 9 9 5 4 4 3 1 Energy Gun 9 | . 28 28 22 22 22 22 25 27 7 . . 15 2 . . . . . 4 17 17 20 23 23 21 19 20 20 21 16 10 8 4 . 1 Ballistic Gun 10 | . . . . . . . . . 19 27 26 10 23 25 26 22 22 22 17 5 5 2 . . . . . . . . . . . . . Ballistic Cannon 1 | . . . . . . . . . . . . . . . . . . . . . . . . . . 1 . . . 1 5 3 3 7 5 Peak Build Rating 209 | 5 12 18 16 16 20 17 32 32 33 35 53 65 74 79 79 100 107 109 112 112 113 114 118 114 127 128 132 131 131 151 148 167 190 209 208 Average Rating 101 | 3 10 13 15 16 16 17 28 32 31 34 51 54 68 78 79 94 104 105 106 110 110 113 113 114 124 123 127 130 130 136 148 163 181 202 179 On Entrance 84 | . 5 12 13 16 16 17 17 32 32 33 35 50 65 74 79 79 100 106 106 112 109 113 114 114 114 127 126 131 131 131 148 148 151 190 192 Avg Prop Armor Cover (%) 4 | 29 . . 4 4 4 4 4 . . . . 4 . . . . . . . . 2 . . . . . . . . . . . . . . Naked Turns . | . . . . . . . . . . . . . . . . . . . . . . . . . . . . . . . . . . . . Heaviest Build 157 | 8 20 20 32 32 32 32 48 48 48 46 51 53 66 71 71 87 92 92 85 82 82 84 84 84 100 104 104 103 103 133 126 130 144 155 157 Greatest Support 171 | 20 20 20 40 40 40 40 63 63 63 65 87 85 68 73 73 91 94 94 89 86 86 86 86 86 111 111 130 130 130 135 130 138 171 171 171 Greatest Overweight (x) 2 | 2 . . . . . . . . . . . 2 . . . 1 . 1 1 . 1 . . . . 1 . . . 1 . . . . 1 Average Overweight (x) . | . . . . . . . . . . . . . . . . . . . . . . . . . . . . . . . . . . . . Largest Inventory Capacity 20 | 8 10 10 10 10 10 10 15 15 15 15 15 15 15 15 15 15 15 15 15 15 15 15 15 15 15 15 15 15 15 15 15 15 20 20 20 Average Capacity 14 | 6 9 10 10 10 10 10 11 15 15 15 15 15 15 15 15 15 15 15 15 15 15 15 15 15 15 15 15 15 15 15 15 15 16 20 20 Most Carried 20 | 7 8 10 10 10 10 10 12 12 13 15 15 15 15 15 15 15 15 15 15 15 15 15 15 15 15 15 15 14 15 15 15 15 20 19 18 Average Carried 13 | 4 7 9 9 10 9 10 10 12 11 14 14 13 14 15 15 14 14 14 14 14 14 14 14 15 14 14 14 14 14 14 15 14 15 15 8 Final Capacity 20 | 8 10 10 10 10 10 10 15 15 15 15 15 15 15 15 15 15 15 15 15 15 15 15 15 15 15 15 15 15 15 15 15 15 20 20 20 Final Carried 20 | 7 8 10 10 10 10 10 12 12 13 15 15 15 15 15 15 15 15 15 15 15 15 15 15 15 15 15 14 14 15 15 15 14 20 14 . Class Distribution -------------------- 35% | Scavenger-Gunner 29% | Scavenger-Tank 9% | Scavenger-Skirmisher 9% | Tank 8% | Mutant 6% | Skirmisher Dominant Class ---------------- Mutant | -10/Materials Mutant | -10/Mines Mutant | -9/Materials Mutant | -9/Mines Mutant | -9/Exiles Mutant | -8/Mines Skirmisher | -8/Materials Skirmisher | -8/Storage Tank | -8/Garrison Tank | -8/Recycling Tank | -6/Factory Scavenger-Tank | -6/Garrison Scavenger-Tank | -6/Factory Scavenger-Tank | -6/Lower Caves Scavenger-Tank | -6/Lower Caves Scavenger-Tank | -5/Factory Scavenger-Skirmisher | -5/Garrison Scavenger-Gunner | -5/Factory Scavenger-Gunner | -5/Garrison Scavenger-Skirmisher | -5/Factory Scavenger-Gunner | -5/Upper Caves Scavenger-Gunner | -5/Upper Caves Scavenger-Gunner | -5/Zhirov Scavenger-Gunner | -4/Proximity Caves Scavenger-Tank | -4/Factory Scavenger-Tank | -4/Garrison Scavenger-Tank | -4/Factory Scavenger-Tank | -4/Upper Caves Scavenger-Tank | -4/Upper Caves Scavenger-Tank | -4/Warlord Scavenger-Gunner | -3/Proximity Caves Scavenger-Gunner | -3/Research Scavenger-Gunner | -2/Research Scavenger-Gunner | -1/Access Scavenger-Gunner | -1/Command Resources | -11 -10 -10 -9 -9 -9 -8 -8 -8 -8 -8 -6 -6 -6 -6 -6 -5 -5 -5 -5 -5 -5 -5 -5 -4 -4 -4 -4 -4 -4 -4 -3 -3 -2 -1 -1 ----------- Run | Yrd Mat Min Mat Min Exi Min Mat Sto Gar Rec Fac Gar Fac Low Low Fac Gar Fac Gar Fac Upp Upp Zhi Pro Fac Gar Fac Upp Upp War Pro Res Res Acc Com Matter Collected 16909 | 206 104 40 60 . . 20 118 . 473 268 472 1096 861 275 . 208 1683 1093 1565 120 120 135 101 . . 306 162 15 95 1548 866 1815 651 1838 595 Remotely . | . . . . . . . . . . . . . . . . . . . . . . . . . . . . . . . . . . . . Salvage Created 21579 | . . 80 280 . . 27 563 . 474 160 552 1836 1327 274 . 315 1824 1463 1655 191 83 51 308 188 75 769 446 45 388 949 1032 1375 705 2644 1500 Parts 825 | . . 6 23 . . 5 33 . 48 5 24 64 58 11 . 19 81 53 76 12 3 1 4 9 2 12 14 5 14 25 31 42 17 90 38 Haulers Intercepted 9 | . . . 1 . . . 2 . . . . . 1 . . . . 2 . . . . . . . . . . . . . 1 2 . . Recyclers Shooed 17 | . . . 2 . . . 1 . . . 2 . 3 . . . . 2 . . . . . . 1 . . . . . . 4 . 2 . Parts Field Recycled . | . . . . . . . . . . . . . . . . . . . . . . . . . . . . . . . . . . . . Retrieved Matter . | . . . . . . . . . . . . . . . . . . . . . . . . . . . . . . . . . . . . Parts Self-Destructed 72 | . . . . . . . . . . . . . . 7 . . . . . . 2 1 4 9 . . . 3 11 . 35 . . . . Prevented . | . . . . . . . . . . . . . . . . . . . . . . . . . . . . . . . . . . . . Parts Restored . | . . . . . . . . . . . . . . . . . . . . . . . . . . . . . . . . . . . . Kills | -11 -10 -10 -9 -9 -9 -8 -8 -8 -8 -8 -6 -6 -6 -6 -6 -5 -5 -5 -5 -5 -5 -5 -5 -4 -4 -4 -4 -4 -4 -4 -3 -3 -2 -1 -1 ------- Run | Yrd Mat Min Mat Min Exi Min Mat Sto Gar Rec Fac Gar Fac Low Low Fac Gar Fac Gar Fac Upp Upp Zhi Pro Fac Gar Fac Upp Upp War Pro Res Res Acc Com Combat Hostiles Destroyed 337 | . . 5 10 . . . 10 . 24 2 7 31 13 3 . 5 30 16 27 2 1 4 . 2 . 10 6 4 9 16 16 13 12 49 10 Melee 1 | . . . . . . . . . . . . 1 . . . . . . . . . . . . . . . . . . . . . . . Guns 195 | . . 5 10 . . . 10 . 24 2 7 29 10 3 . 5 20 14 26 2 1 . . 2 . 10 6 . 5 1 . 1 2 . . Cannons 76 | . . . . . . . . . . . . . . . . . . . . . . . . . . . . . . 14 16 12 7 21 6 AOE 63 | . . . . . . . . . . . . . 3 . . . 10 2 1 . . 4 . . . . . 4 4 . . . 3 28 4 Classes Destroyed 26 | . . 2 3 . . 1 2 . 1 3 . 4 . 1 . . 2 2 . . . . . . . . . . . . . . 2 . 3 Worker 15 | . . . . . . . 1 . . . 1 . 2 . . . . 3 . 1 . . . . . . . . . . . 2 . 4 1 Builder 5 | . . . . . . . . . . . . . . . . . . 1 . . . . . . . . 1 . . . . . . 3 . Tunneler 2 | . . . . . . 1 . . . . . . 1 . . . . . . . . . . . . . . . . . . . . . . Hauler 9 | . . . 1 . . . 2 . . . . . 1 . . . . 2 . . . . . . . . . . . . . 1 2 . . Recycler 20 | . . . . . . . . . . 1 1 . 5 . . . . 1 . . . . . . . . . . . . 1 4 . 6 1 Mechanic 1 | . . . . . . . . . . . . . . . . . . . . . . . . . . . . . . . . . . . 1 Operator 3 | . . . . . . . . . . . . . . . . . . 1 . 1 . . . . . . . . . . . 1 . . . Watcher 20 | . . . 3 . . . 3 . . . . . . . . . 1 3 . . . . . . 2 . . . . . 1 3 . 3 1 Swarmer 83 | . . 3 6 . . . 2 . 19 . . 12 3 . . . 4 . 1 . . 4 . . . . . 4 4 1 4 . 2 14 . Cutter 2 | . . . . . . . . . 2 . . . . . . . . . . . . . . . . . . . . . . . . . . Saboteur 3 | . . . . . . . . . . . . 1 . . . . . . . . . . . . . . . . . . . . . 1 1 Grunt 100 | . . 2 1 . . . 2 . 2 . 3 11 1 3 . . 12 7 15 . . . . . . 6 2 . 1 7 2 . 3 18 2 Brawler 7 | . . . . . . . . . . . . 1 . . . . 1 . 1 . . . . . . 2 . . 1 1 . . . . . Duelist 6 | . . . . . . . . . . . . 1 . . . . . . . . . . . . . . . . . 1 1 . . 2 1 Protector 5 | . . . . . . . . . . . . 1 . . . . . . . . . . . . . . . . . 3 1 . . . . Sentry 41 | . . . 3 . . . 5 . 1 . . 3 3 . . 1 5 3 2 2 1 . . . . 2 . . 1 . 4 3 . 2 . Demolisher 2 | . . . . . . . . . . 1 . 1 . . . . . . . . . . . . . . . . . . . . . . . Specialist 9 | . . . . . . . . . . . . . . . . . 4 . 3 . . . . . . . . . . . . . . 2 . Hunter 31 | . . . . . . . 1 . . . 3 . 1 . . . 3 4 . . . . . . . . 4 . . 1 4 3 1 6 . Programmer 38 | . . . . . . . . . . 1 1 . 5 . . 4 2 2 5 . . . . 2 . . . . 2 . . 7 . 4 3 Behemoth 4 | . . . . . . . . . . . . . . . . . 1 . . . . . . . . . . . . 2 1 . . . . M Guard 1 | . . . . . . . . . . . . . . . . . . . . . . . . . . . . . . . . . . . 1 Striker 3 | . . . . . . . . . . . . . . . . . . . . . . . . . . . . . . . . . 3 . . Executioner 4 | . . . . . . . . . . . . . . . . . . . . . . . . . . . . . . . . . 3 . 1 Samaritan 2 | . . . . . . . . . . . . . . 2 . . . . . . . . . . . . . . . . . . . . . Butcher 1 | . . . . . . . . . . . . . . . . . . . . . . . . . . . . . . 1 . . . . . Wizard 1 | . . . . . . . . . . . . . . . . . . . . . . . . . . . . . . . . . . . 1 Mutant 2 | . . . . . . . . . . . . . . . . . . . . . . . . . . . . . . . . . . . 2 Sapper 1 | . . . . . . . . . . . . . . . . . . . . . . . . . . . . . . 1 . . . . . Knight 1 | . . . . . . . . . . . . . . . . . . . . . . . . . . . . . . . . . . . 1 Best Kill Streak 19 | . . 3 5 . . 1 3 . 4 2 3 7 4 3 . 2 7 5 4 3 1 4 . 2 1 10 2 4 5 4 6 6 3 19 5 Combat Bots Only 17 | . . 3 5 . . . 3 . 4 2 2 7 3 3 . 2 7 2 4 2 1 4 . 2 . 10 2 4 5 4 4 3 3 17 4 Max Kills in Single Turn 5 | . . 1 2 . . 1 1 . 2 1 1 2 2 1 . 1 3 2 2 1 1 2 . 1 1 1 1 3 2 1 1 1 2 4 5 Gunslinging 1 | . . . . . . . . . 1 . . 1 . . . . . . 1 . . . . . . . . . 1 . . . . . . Exploded 4 | . . . . . . . . . . . . . 2 . . . 3 2 1 . . 2 . . . . . 3 2 . . . 2 4 4 Melee 1 | . . . . . . . . . . . . 1 . . . . . . . . . . . . . . . . . . . . . . . Uniques/NPCs Destroyed 1 | . . . . . . . . . . . . . . . . . . . . . . . . . . . . . . . . . . . 1 MAIN.C Shell (-1/Command) Combat | -11 -10 -10 -9 -9 -9 -8 -8 -8 -8 -8 -6 -6 -6 -6 -6 -5 -5 -5 -5 -5 -5 -5 -5 -4 -4 -4 -4 -4 -4 -4 -3 -3 -2 -1 -1 -------- Run | Yrd Mat Min Mat Min Exi Min Mat Sto Gar Rec Fac Gar Fac Low Low Fac Gar Fac Gar Fac Upp Upp Zhi Pro Fac Gar Fac Upp Upp War Pro Res Res Acc Com Hostile Shots Fired 1603 | . . 16 27 . . . 39 . 78 6 26 166 93 15 . 10 72 93 111 13 2 9 . 44 . 77 67 1 38 34 46 77 15 177 251 Missed 605 | . . 2 7 . . . 13 . 23 3 8 58 36 5 . 1 36 28 40 3 2 4 . 24 . 23 29 1 15 15 14 42 5 79 89 Hits 998 | . . 14 20 . . . 26 . 55 3 18 108 57 10 . 9 36 65 71 10 . 5 . 20 . 54 38 . 23 19 32 35 10 98 162 Melee 13 | . . . . . . . . . 5 . . 6 . . . . . . . . . . . . . 1 . . 1 . . . . . . Projectile 985 | . . 14 20 . . . 26 . 50 3 18 102 57 10 . 9 36 65 71 10 . 5 . 20 . 53 38 . 22 19 32 35 10 98 162 AOE 18 | . . . . . . . . . 1 1 . 4 . . . . . 1 . . . . . . . . . . . . . . . . 11 Critical Strikes 53 | . . . . . . . 2 . 2 . 2 5 2 . . . 3 2 6 2 . . . 2 . 5 1 . 2 1 . 1 1 6 8 Part Disruptions 11 | . . . . . . . . . . . . . 1 . . . . . 7 . 1 . . . . . . . . . . . . 1 1 Damage Taken 20476 | . . 152 207 . . . 358 . 555 72 299 1828 693 192 . 192 938 1248 1153 235 39 138 . 415 . 1104 665 . 513 422 748 805 178 1468 5859 Core 2749 | . . 21 21 . . . 59 . 59 14 34 198 50 . . . 80 75 64 21 . 30 . 38 . 70 48 . 21 27 111 71 20 83 1534 Absorbed by Shields 738 | . . . . . . . . . . . 39 . . . . . . . . . . . . . . . . . . . . . 54 448 197 Ignored by Resistances 477 | . . . . . . . . . . . . . . . . . . . . . . . . . . . . . . . . . . 287 190 Regen/Repaired (Parts) 246 | . . . . . . . . . . . . . . . . 73 . . . . . . . . . . 86 . . 49 . . 38 . . Core Remaining (%) 84 | 100 . 91 . . . 94 . . . 76 . . . . 66 . . . . . . . . 63 . . . . . . 75 94 98 . . Volleys Fired 1061 | . . 10 23 1 . . 36 . 62 7 29 103 43 14 . 16 68 67 75 12 2 4 4 7 9 49 22 2 12 43 52 63 41 116 69 Largest 4 | . . 2 2 2 . . 3 . 3 3 4 4 4 4 . 4 4 4 4 4 4 4 4 4 4 4 4 1 4 4 1 2 4 4 3 Hottest 321 | . . 130 130 130 . . 193 . 165 75 100 228 160 132 . 132 132 132 228 228 228 276 276 276 276 306 306 43 306 306 76 165 321 279 236 Shots Fired 2758 | . . 20 46 2 . . 109 . 160 21 116 357 164 53 . 65 204 245 248 40 9 8 16 28 24 123 73 2 42 49 52 64 62 222 134 Gun 2189 | . . 20 46 2 . . 109 . 160 21 116 357 162 53 . 65 196 244 246 40 9 5 16 28 24 105 68 . 40 8 5 7 10 . 27 Cannon 482 | . . . . . . . . . . . . . . . . . . . . . . . . . . 18 5 . . 41 47 52 46 183 90 Launcher 82 | . . . . . . . . . . . . . 2 . . . 8 1 2 . . 3 . . . . . 2 2 . . 5 6 36 15 Special 5 | . . . . . . . . . . . . . . . . . . . . . . . . . . . . . . . . . . 3 2 Kinetic 1774 | . . . . . . . 2 . 107 21 116 175 157 53 . 65 196 244 237 12 2 1 . . . 18 5 . . 41 47 52 33 118 72 Thermal 873 | . . 20 46 2 . . 107 . 53 . . 182 5 . . . . . 9 28 7 4 16 28 24 105 68 . 40 8 5 7 23 65 21 Explosive 73 | . . . . . . . . . . . . . 2 . . . 8 1 2 . . 3 . . . . . 2 2 . . 5 6 36 6 Electromagnetic . | . . . . . . . . . . . . . . . . . . . . . . . . . . . . . . . . . . . . Entropic 33 | . . . . . . . . . . . . . . . . . . . . . . . . . . . . . . . . . . . 33 Robot Hit Streak 49 | . . 12 10 . . . 12 . 9 8 8 49 13 10 . 18 11 17 10 12 3 . 6 5 3 26 9 . 10 17 13 6 24 14 12 Robot Miss Streak 7 | . . 3 7 . . . 5 . 4 1 5 4 3 2 . 3 2 5 3 2 1 . 2 1 2 2 4 . 1 5 2 3 3 4 3 Penetration Max 1 | . . . . . . . . . . . . . 1 . . . 1 1 1 1 . . . . . . . . . . . . . . . Secondary Targets 49 | . . 1 . . . . . . 7 1 . 11 1 . . . 4 3 9 1 . . . . . 6 1 . 3 1 . . . . . Max Gunslinging Chain 1 | . . 1 . . . . . . 1 1 . 1 1 . . . 1 1 1 1 . . . . . 1 1 . 1 1 . . . . . Shots Hit Robots 1560 | . . 17 39 . . . 64 . 56 13 65 224 90 26 . 30 114 150 115 22 5 . 8 11 7 66 38 . 31 32 38 36 45 123 95 Core Hits 924 | . . 20 53 . . 1 31 . 29 7 26 110 43 11 . 11 70 57 56 8 3 5 7 4 4 28 18 4 16 15 19 29 32 136 71 Critical Kills 13 | . . . . . . . . . . . 1 1 1 . . . 5 3 2 . . . . . . . . . . . . . . . . Critical Parts Destroyed 22 | . . . . . . . . . . . 1 . 2 . . 2 4 5 5 . . . . . . . . . . . . . . . 3 Critical Strikes 79 | . . . . . . . 6 . . . 2 11 3 . . 2 12 8 7 . . . . . . 2 2 . . 7 2 3 2 4 6 Burn 19 | . . . . . . . 6 . . . . 10 . . . . . . . . . . . . . 2 1 . . . . . . . . Destroy 35 | . . . . . . . . . . . 2 1 3 . . 2 12 8 7 . . . . . . . . . . . . . . . . Blast 22 | . . . . . . . . . . . . . . . . . . . . . . . . . . . 1 . . 7 2 3 2 4 3 Detonate 3 | . . . . . . . . . . . . . . . . . . . . . . . . . . . . . . . . . . . 3 Melee Attacks 2 | . . . . . . . . . . . . . . 2 . . . . . . . . . . . . . . . . . . . . . Impact . | . . . . . . . . . . . . . . . . . . . . . . . . . . . . . . . . . . . . Slashing 2 | . . . . . . . . . . . . . . 2 . . . . . . . . . . . . . . . . . . . . . Piercing . | . . . . . . . . . . . . . . . . . . . . . . . . . . . . . . . . . . . . Sneak Attacks . | . . . . . . . . . . . . . . . . . . . . . . . . . . . . . . . . . . . . Combat Hostiles . | . . . . . . . . . . . . . . . . . . . . . . . . . . . . . . . . . . . . Follow-up Attacks . | . . . . . . . . . . . . . . . . . . . . . . . . . . . . . . . . . . . . Damage Inflicted 63003 | . 4 258 527 . . 12 1231 . 1020 252 1168 4518 2471 628 . 911 4219 5002 3836 691 144 319 338 416 220 1933 1152 335 1427 2585 3257 3430 2737 10960 7002 Guns 30708 | . . 258 522 . . . 1209 . 1020 246 1124 4475 2183 628 . 906 3083 4509 3616 643 144 . 338 416 197 1933 992 . 899 72 . 168 213 . 914 Cannons 17785 | . . . . . . . . . . . . . . . . . . . . . . . . . . . 131 . . 2513 3257 2871 1528 4559 2926 Explosions 13908 | . . . . . . . . . . . . 43 211 . . . 1136 476 220 . . 319 . . . . . 335 528 . . 390 996 6322 2932 Melee . | . . . . . . . . . . . . . . . . . . . . . . . . . . . . . . . . . . . . Ramming 602 | . 4 . 5 . . 12 22 . . 6 44 . 77 . . 5 . 17 . 48 . . . . 23 . 29 . . . . 1 . 79 230 Kinetic 34210 | . . . . . . . . . 695 246 1124 1718 2058 628 . 906 3083 4509 3616 251 27 . . . . . 131 . . 2513 3257 2871 1180 2931 2466 Thermal 13843 | . . 258 522 . . . 1209 . 325 . . 2757 125 . . . . 299 . 392 117 . 338 416 197 1933 992 . 899 72 . 168 561 1628 635 Explosive 12685 | . . . . . . . . . . . . 43 211 . . . 1136 177 220 . . 319 . . . . . 335 528 . . 390 996 6322 2008 Electromagnetic . | . . . . . . . . . . . . . . . . . . . . . . . . . . . . . . . . . . . . Impact . | . . . . . . . . . . . . . . . . . . . . . . . . . . . . . . . . . . . . Slashing . | . . . . . . . . . . . . . . . . . . . . . . . . . . . . . . . . . . . . Piercing . | . . . . . . . . . . . . . . . . . . . . . . . . . . . . . . . . . . . . Entropic 1663 | . . . . . . . . . . . . . . . . . . . . . . . . . . . . . . . . . . . 1663 Highest Corruption 11 | . . . . . . . 4 4 4 4 . . 4 4 4 1 2 6 10 10 10 3 . . . . . . 5 5 . 2 3 3 11 Average Corruption 4 | . . . . . . . 3 4 4 4 . . 3 4 4 1 1 4 9 10 5 2 . . . . . . 5 5 . 1 2 1 6 Corruption Purged 10 | . . . . . . . . . . . . . . . . . . . . . 7 3 . . . . . . . . . . . . . Corruption Blocked . | . . . . . . . . . . . . . . . . . . . . . . . . . . . . . . . . . . . . Effects 247 | . . . . . . . 2 1 34 13 . . 4 12 1 3 16 36 56 10 11 1 . . . . . . . 1 . 2 9 6 29 Message Errors 44 | . . . . . . . . . 11 3 . . . 1 . . 2 7 9 . 3 . . . . . . . . 1 . . . 1 6 Matter Fused 62 | . . . . . . . 1 . 11 2 . . 1 2 . . 5 13 12 3 2 . . . . . . . . . . . 4 2 4 Heat Flow Errors 25 | . . . . . . . . . 1 2 . . 1 2 . 2 . 4 8 . . . . . . . . . . . . 1 . 1 3 Energy Discharges 29 | . . . . . . . . 1 3 3 . . 2 1 . . 4 4 3 3 1 1 . . . . . . . . . . 1 1 1 Parts Rejected 3 | . . . . . . . . . 1 . . . . . . . . . 1 . . . . . . . . . . . . . . 1 . Parts Fused 5 | . . . . . . . . . . . . . . 1 . . . 1 1 . . . . . . . . . . . . . 1 . 1 Data Loss (minor) 30 | . . . . . . . . . 3 1 . . . 2 . . 2 3 6 3 2 . . . . . . . . . . . 2 . 6 Data Loss (major) 13 | . . . . . . . . . . . . . . 2 1 . . 3 5 . 1 . . . . . . . . . . . 1 . . Misfires 13 | . . . . . . . 1 . . 1 . . . . . 1 1 1 2 1 1 . . . . . . . . . . . . . 4 Alerts 5 | . . . . . . . . . . . . . . . . . 1 . 2 . 1 . . . . . . . . . . 1 . . . Weapon Failures 18 | . . . . . . . . . 4 1 . . . 1 . . 1 . 7 . . . . . . . . . . . . . . . 4 Overload Shots . | . . . . . . . . . . . . . . . . . . . . . . . . . . . . . . . . . . . . Overflow Damage 2087 | . . . . . . . . . . . . . 79 . . . . 27 . 33 . 13 . . . . 9 . . 345 268 587 102 451 173 Projectiles 1552 | . . . . . . . . . . . . . . . . . . . . . . . . . . . . . . 345 268 581 63 185 110 Explosions 437 | . . . . . . . . . . . . . 79 . . . . 27 . . . 13 . . . . . . . . . 6 39 227 46 Melee 98 | . . . . . . . . . . . . . . . . . . . . 33 . . . . . . 9 . . . . . . 39 17 Knockbacks 70 | . . . . . . . . . . . . . 1 . . . . . . 1 . . . . 1 . . . . 12 5 11 5 18 16 Impact 6 | . . . . . . . . . . . . . 1 . . . . . . 1 . . . . 1 . . . . . . . . . 3 Kinetic 57 | . . . . . . . . . . . . . . . . . . . . . . . . . . . . . . 11 4 8 5 18 11 Secondary 7 | . . . . . . . . . . . . . . . . . . . . . . . . . . . . . . 1 1 3 . . 2 Self-Inflicted Damage 300 | . . . . . . . . . . . . . . . . . 87 . . . . 66 . . . . . . 57 . . 23 . . 67 Shots 8 | . . . . . . . . . . . . . . . . . 2 . . . . 2 . . . . . . 2 . . 1 . . 1 Rammed 13 | . . . 3 . . 1 3 . . 1 4 . . . . . . . . . . . . . . . . . . . . . . . 1 Targets Rammed 67 | . 1 . 3 . . 1 4 . . 1 4 . 5 . . 1 . 2 1 2 . . . . 2 . 1 . . . . 1 . 1 37 Kicked 53 | . 1 . . . . . . . . . . . 5 . . 1 . 2 1 2 . . . . 2 . 1 . . . . 1 . 1 36 Crushed 1 | . . . . . . . 1 . . . . . . . . . . . . . . . . . . . . . . . . . . . . Highest Temperature 350 | . . 225 81 6 . . 16 . 232 166 60 70 63 119 . 221 24 174 238 350 249 138 196 200 112 297 344 . 344 134 38 253 181 96 139 Average Temperature 60 | . . 99 22 4 . . 5 . 33 45 28 25 23 60 . 100 11 73 40 150 116 92 78 98 56 103 131 . 149 28 12 18 65 32 41 Received Heat Transfer 2588 | . . 63 42 . . . 126 . 36 . 66 503 99 57 . . 165 66 288 27 . . . 121 . 353 9 . 27 150 38 18 . 144 190 Effects 1 | . . . . . . . . . . . . . . . . . . . . . . . . . . 1 . . . . . . . . . Energy Bleed 1 | . . . . . . . . . . . . . . . . . . . . . . . . . . 1 . . . . . . . . . Siege Activations . | . . . . . . . . . . . . . . . . . . . . . . . . . . . . . . . . . . . . Martial Activations . | . . . . . . . . . . . . . . . . . . . . . . . . . . . . . . . . . . . . Shielding Activations . | . . . . . . . . . . . . . . . . . . . . . . . . . . . . . . . . . . . . Robots Disrupted . | . . . . . . . . . . . . . . . . . . . . . . . . . . . . . . . . . . . . Combat Hostiles . | . . . . . . . . . . . . . . . . . . . . . . . . . . . . . . . . . . . . Robots Corrupted 4 | . . . . . . . . . . . . . . . . . . . . 1 . . . . . . 1 . . . . 2 . . . Combat Hostiles . | . . . . . . . . . . . . . . . . . . . . . . . . . . . . . . . . . . . . Parts Fried 8 | . . . . . . . . . . . . . . . . . 1 . . 1 . . . . . . 2 . . . . 4 . . . Impact Corruptions 10 | . . . . . . . . . . . . . . . . . . . . 1 . . . . . . 1 . . . . 4 . 1 3 Robots Melted 2 | . . . . . . . . . . . . 1 . . . . . . . . . . . . . . . . . 1 . . . . . Combat Hostiles 2 | . . . . . . . . . . . . 1 . . . . . . . . . . . . . . . . . 1 . . . . . Parts Melted 62 | . . . 1 . . . 10 . 2 . . 15 1 . . . . . . 1 . . . 2 1 12 5 . 2 8 . . 1 1 . Heat Transferred 20552 | . . 325 655 . . . 2673 . 629 . . 6263 275 . . . . 150 . 481 148 . 286 444 259 2701 1369 . 1110 111 . 223 646 1349 455 Parts Sabotaged 11 | . . . . . . . . . . . . 11 . . . . . . . . . . . . . . . . . . . . . . . Parts Stolen . | . . . . . . . . . . . . . . . . . . . . . . . . . . . . . . . . . . . . Parts Stripped . | . . . . . . . . . . . . . . . . . . . . . . . . . . . . . . . . . . . . Power Chain Reactions . | . . . . . . . . . . . . . . . . . . . . . . . . . . . . . . . . . . . . Alert | -11 -10 -10 -9 -9 -9 -8 -8 -8 -8 -8 -6 -6 -6 -6 -6 -5 -5 -5 -5 -5 -5 -5 -5 -4 -4 -4 -4 -4 -4 -4 -3 -3 -2 -1 -1 ------- Run | Yrd Mat Min Mat Min Exi Min Mat Sto Gar Rec Fac Gar Fac Low Low Fac Gar Fac Gar Fac Upp Upp Zhi Pro Fac Gar Fac Upp Upp War Pro Res Res Acc Com Maximum Alert Level 5 | . . . . . . . 1 . 4 2 . 4 3 . . . 5 4 5 3 . . . . . 1 1 . . . . 1 1 5 5 Low Security (%) 39 | 100 100 100 100 100 . 100 95 100 20 . 100 9 . . . 100 14 . . . . . . . 100 63 29 . . . . 89 59 25 . Level 1 10 | . . . . . . . 4 . 7 41 . 18 . . . . 15 . . . . . . . . 36 70 . . . . 10 40 2 . Level 2 11 | . . . . . . . . . 26 58 . 22 70 . . . 7 . 9 . . . . . . . . . . . . . . 1 . Level 3 18 | . . . . . . . . . 35 . . 23 29 . . . 14 84 21 100 . . . . . . . . . . . . . 10 . Level 4 9 | . . . . . . . . . 9 . . 25 . . . . 22 15 27 . . . . . . . . . . . . . . 16 . Level 5 8 | . . . . . . . . . . . . . . . . . 26 . 41 . . . . . . . . . . . . . . 43 26 High Security 2 | . . . . . . . . . . . . . . . . . . . . . . . . . . . . . . . . . . . 73 Max Security . | . . . . . . . . . . . . . . . . . . . . . . . . . . . . . . . . . . . . Peak Influence 2746 | . . 70 160 . . 5 229 92 1166 554 138 1563 820 . . 127 1896 1116 1939 1061 . . . . 63 374 256 . . . . 221 284 2567 2746 Initial 1642 | . . . 19 . . . . 92 61 524 125 9 820 . . 121 23 995 573 1017 . . . . 63 10 196 . . . . 215 118 100 1642 Average 640 | . . 22 27 . . . 70 92 612 427 51 744 653 . . 56 1028 1037 1405 998 . . . . 23 159 215 . . . . 129 158 1327 2258 Influence Increases 17162 | . . 120 311 . . 5 502 3 1145 45 248 1654 539 85 . 228 1933 963 1446 164 20 90 15 175 93 394 195 90 190 275 648 701 563 2963 1359 Destroy 0b10 Robot/C 7820 | . . 100 200 . . . 200 . 480 40 160 600 260 60 . 100 860 380 640 60 20 80 . 40 . 200 120 80 180 260 420 280 240 1180 580 Destroy 0b10 Robot/NC 510 | . . . 20 . . 5 30 . . 5 10 30 45 . . . 5 60 . 10 . . 15 5 10 . 5 . . 15 15 55 10 130 30 Destroy Leader 1060 | . . 20 48 . . . 80 . 20 . 40 50 92 10 . 30 40 92 50 30 . 10 . 10 4 20 20 10 10 . 10 88 34 190 52 Allied During Kill 1396 | . . . . . . . . . . . 10 . . . . . 334 78 100 23 . . . . . . . . . . 188 51 . 335 277 Successful Hack 357 | . . . 43 . . . 6 3 14 . 28 28 69 . . 24 21 59 . . . . . . 12 . . . . . . 32 . 18 . Disable Machine 735 | . . . . . . . 15 . 30 . . 15 45 . . 60 15 60 90 15 . . . . 45 15 15 . . . . 75 45 135 60 Anti-Garrison Action 2300 | . . . . . . . 150 . 400 . . 700 . . . . 400 . 400 . . . . . . 100 . . . . . . 150 . . Destroy Structure 2339 | . . . . . . . 6 . 81 . . 141 28 . . 14 258 114 136 26 . . . . 22 29 20 . . . . 120 84 960 300 Lose Combat Pursuer 645 | . . . . . . . 15 . 120 . . 90 . 15 . . . 120 30 . . . . 120 . 30 15 . . . 15 . . 15 60 Influence Decreases 14571 | . . 70 359 2 . 5 281 129 74 912 533 105 1381 530 83 387 71 2040 326 1052 624 308 244 75 178 35 348 263 178 205 459 809 607 563 1335 Entered New Map 6630 | . . . 31 2 . . . 129 34 642 174 5 743 268 53 72 11 901 246 922 390 86 229 . 37 5 178 83 10 60 130 104 93 67 925 Time Decay 5932 | . . 70 191 . . 5 281 . . 270 329 . 478 262 30 274 . 559 . 120 214 222 15 75 141 . 170 180 148 145 289 464 514 446 40 Lost Part 680 | . . . . . . . . . 30 . 10 100 . . . . 20 30 60 10 . . . . . 30 . . 20 . . 30 . 30 310 Lost Ally 420 | . . . . . . . . . 10 . 20 . 10 . . . 40 100 20 . 20 . . . . . . . . . 40 80 . 20 60 Purge Threat 909 | . . . 137 . . . . . . . . . 150 . . 41 . 450 . . . . . . . . . . . . . 131 . . . Squads Dispatched 70 | . 1 . . . . . 2 . . . 2 . 6 . . 5 . 14 . 1 . . . 1 . . 2 . 1 . . 4 1 13 17 Investigation 6 | . . . . . . . . . . . . . . . . 2 . 1 . . . . . . . . 1 . . . . 1 1 . . Extermination 15 | . . . . . . . . . . . 1 . 3 . . 2 . 3 . . . . . . . . . . . . . 3 . 3 . Reinforcement 14 | . 1 . . . . . . . . . 1 . 2 . . . . 3 . 1 . . . . . . 1 . . . . . . 3 2 Assault 27 | . . . . . . . 2 . . . . . . . . . . 4 . . . . . 1 . . . . 1 . . . . 4 15 Garrison 8 | . . . . . . . . . . . . . 1 . . 1 . 3 . . . . . . . . . . . . . . . 3 . Intercept . | . . . . . . . . . . . . . . . . . . . . . . . . . . . . . . . . . . . . Searches Triggered . | . . . . . . . . . . . . . . . . . . . . . . . . . . . . . . . . . . . . Construction Impeded 3 | . . . . . . . . . . . . . . . . . . 1 . . . . . . . . . . . . . . . 2 . Haulers Reinforced 3 | . . . . . . . . . . . 1 . . . . . . 1 . . . . . . . . 1 . . . . . . . . Active Scanning Responses . | . . . . . . . . . . . . . . . . . . . . . . . . . . . . . . . . . . . . Cargo Convoy Interrupts . | . . . . . . . . . . . . . . . . . . . . . . . . . . . . . . . . . . . . Stealth | -11 -10 -10 -9 -9 -9 -8 -8 -8 -8 -8 -6 -6 -6 -6 -6 -5 -5 -5 -5 -5 -5 -5 -5 -4 -4 -4 -4 -4 -4 -4 -3 -3 -2 -1 -1 --------- Run | Yrd Mat Min Mat Min Exi Min Mat Sto Gar Rec Fac Gar Fac Low Low Fac Gar Fac Gar Fac Upp Upp Zhi Pro Fac Gar Fac Upp Upp War Pro Res Res Acc Com Distress Signals 33 | . . 1 1 . . . 6 . . . . . . . . . . . . . . . . . . . 1 . . . 1 . 12 3 8 Communications Jammed . | . . . . . . . . . . . . . . . . . . . . . . . . . . . . . . . . . . . . Distress Signals . | . . . . . . . . . . . . . . . . . . . . . . . . . . . . . . . . . . . . Times Spotted 591 | . 2 5 17 . . . 24 . 28 2 12 40 21 4 . 6 42 28 33 5 1 4 . 13 2 10 7 3 9 55 20 20 33 74 71 Peak Tracking Total 21 | . 2 2 6 . . . 4 . 4 2 3 5 4 4 . 2 5 5 5 2 . 4 . 10 1 10 2 3 7 13 5 3 7 8 21 Tactical Retreats 23 | . . . . . . . 1 . 3 . . 4 . 1 . . . 5 1 . . . . 3 . 1 1 . . . 1 . . 1 1 Traps | -11 -10 -10 -9 -9 -9 -8 -8 -8 -8 -8 -6 -6 -6 -6 -6 -5 -5 -5 -5 -5 -5 -5 -5 -4 -4 -4 -4 -4 -4 -4 -3 -3 -2 -1 -1 ------- Run | Yrd Mat Min Mat Min Exi Min Mat Sto Gar Rec Fac Gar Fac Low Low Fac Gar Fac Gar Fac Upp Upp Zhi Pro Fac Gar Fac Upp Upp War Pro Res Res Acc Com Traps Triggered 19 | . . . . . . . 2 . 1 . . . . . . 1 5 2 4 . 1 . . . . 1 . . . . . 1 . . 1 Indirectly . | . . . . . . . . . . . . . . . . . . . . . . . . . . . . . . . . . . . . Trap Hack Attempts . | . . . . . . . . . . . . . . . . . . . . . . . . . . . . . . . . . . . . Triggered . | . . . . . . . . . . . . . . . . . . . . . . . . . . . . . . . . . . . . Disarmed . | . . . . . . . . . . . . . . . . . . . . . . . . . . . . . . . . . . . . Reprogrammed . | . . . . . . . . . . . . . . . . . . . . . . . . . . . . . . . . . . . . Reused . | . . . . . . . . . . . . . . . . . . . . . . . . . . . . . . . . . . . . Traps Extracted . | . . . . . . . . . . . . . . . . . . . . . . . . . . . . . . . . . . . . Installed . | . . . . . . . . . . . . . . . . . . . . . . . . . . . . . . . . . . . . Triggered . | . . . . . . . . . . . . . . . . . . . . . . . . . . . . . . . . . . . . Machines | -11 -10 -10 -9 -9 -9 -8 -8 -8 -8 -8 -6 -6 -6 -6 -6 -5 -5 -5 -5 -5 -5 -5 -5 -4 -4 -4 -4 -4 -4 -4 -3 -3 -2 -1 -1 ---------- Run | Yrd Mat Min Mat Min Exi Min Mat Sto Gar Rec Fac Gar Fac Low Low Fac Gar Fac Gar Fac Upp Upp Zhi Pro Fac Gar Fac Upp Upp War Pro Res Res Acc Com Machines Disabled 95 | . . . . . . . 2 . 9 . . 14 3 . . 4 8 4 14 1 . . 2 . 3 3 1 . . 1 4 5 4 9 4 Max in Single Turn 2 | . . . . . . . 1 . 2 . . 2 1 . . 1 2 1 2 1 . . 1 . 2 1 1 . . 1 1 1 1 1 2 Garrison Access 3 | . . . . . . . 1 . . . . . . . . . . . . . . . . . . . . . . . . . 2 . . Garrison Relay 24 | . . . . . . . . . 5 . . 7 . . . . 6 . 4 . . . . . . 2 . . . . . . . . . Phase Generator 3 | . . . . . . . . . 1 . . 1 . . . . . . 1 . . . . . . . . . . . . . . . . Energy Cycler 1 | . . . . . . . . . . . . . . . . . . . . . . . . . . . . . . . . . . 1 . Machines Repaired . | . . . . . . . . . . . . . . . . . . . . . . . . . . . . . . . . . . . . Machines Dismantled 1 | . . . . . . . . . . . . . . . . . . . . . . . . . . . . . . 1 . . . . . Machines Sabotaged . | . . . . . . . . . . . . . . . . . . . . . . . . . . . . . . . . . . . . Overloaded Fab Kills . | . . . . . . . . . . . . . . . . . . . . . . . . . . . . . . . . . . . . Hacking | -11 -10 -10 -9 -9 -9 -8 -8 -8 -8 -8 -6 -6 -6 -6 -6 -5 -5 -5 -5 -5 -5 -5 -5 -4 -4 -4 -4 -4 -4 -4 -3 -3 -2 -1 -1 --------- Run | Yrd Mat Min Mat Min Exi Min Mat Sto Gar Rec Fac Gar Fac Low Low Fac Gar Fac Gar Fac Upp Upp Zhi Pro Fac Gar Fac Upp Upp War Pro Res Res Acc Com Machines Accessed 88 | . 1 . 8 . 1 . 3 1 1 3 5 4 11 . . 8 2 9 2 2 1 . 3 . 4 . 1 . 1 3 2 9 2 1 . Terminals 51 | . 1 . 7 . . . 1 . 1 . 4 4 7 . . 2 2 6 2 2 . . . . 2 . . . . . 1 7 1 1 . Fabricators 3 | . . . . . . . . . . . . . 1 . . 1 . . . . . . . . . . . . . . 1 . . . . Repair Stations 2 | . . . . . . . . . . . . . . . . 1 . . . . . . . . . . 1 . . . . . . . . Recycling Units 8 | . . . . . . . . . . 3 . . 1 . . 3 . . . . . . . . 1 . . . . . . . . . . Scanalyzers 7 | . . . 1 . . . 1 . . . . . 2 . . . . 2 . . . . . . . . . . . . . 1 . . . Garrison Access 8 | . . . . . . . 1 1 . . 1 . . . . 1 . 1 . . . . . . 1 . . . . . . 1 1 . . Total Hacks 209 | . 4 . 22 . 1 . 7 3 1 7 10 8 27 . . 16 2 20 4 5 1 . 13 . 9 . 3 . 1 9 3 25 4 4 . Successful 93 | . 1 . 9 . 1 . 5 1 1 4 2 3 9 . . 5 2 11 . 1 1 . 13 . 3 . 1 . 1 9 1 8 . 1 . Failed 116 | . 3 . 13 . . . 2 2 . 3 8 5 18 . . 11 . 9 4 4 . . . . 6 . 2 . . . 2 17 4 3 . Catastrophic 29 | . . . 2 . . . . . . . 2 . 4 . . 3 . 3 1 1 . . . . 3 . . . . . . 7 3 . . Database Lockouts . | . . . . . . . . . . . . . . . . . . . . . . . . . . . . . . . . . . . . Manual 60 | . . . 6 . 1 . 3 . . . 2 1 17 . . 2 . 6 . 2 . . . . 6 . 3 . . . . 8 2 . 1 Terminals 130 | . 4 . 20 . . . 4 . 1 . 9 8 19 . . 4 2 14 4 5 . . . . 6 . . . . . 1 23 2 4 . Fabricators 7 | . . . . . . . . . . . . . 2 . . 3 . . . . . . . . . . . . . . 2 . . . . Repair Stations 5 | . . . . . . . . . . . . . . . . 2 . . . . . . . . . . 3 . . . . . . . . Recycling Units 17 | . . . . . . . . . . 7 . . 2 . . 6 . . . . . . . . 2 . . . . . . . . . . Scanalyzers 13 | . . . 2 . . . 2 . . . . . 4 . . . . 4 . . . . . . . . . . . . . 1 . . . Garrison Access 12 | . . . . . . . 1 3 . . 1 . . . . 1 . 2 . . . . . . 1 . . . . . . 1 2 . . Terminal Hacks 60 | . 1 . 7 . 1 . 1 . 1 . . 2 4 . . 1 2 6 . 1 1 . 13 . . . . . 1 9 1 7 . 1 . Record 9 | . . . . . . . . . . . . . . . . . . . . . . . 1 . . . . . . 8 . . . . . Part Schematic 4 | . . . . . . . . . . . . . . . . . . . . . . . 4 . . . . . . . . . . . . Robot Analysis 4 | . . . . . . . . . . . . . . . . . . . . . . . 4 . . . . . . . . . . . . Prototype ID Bank 8 | . 1 . 2 . . . . . . . . . . . . . . . . . . . 4 . . . . . . . . 1 . . . Open Door 5 | . . . . . . . . . . . . . . . . . 1 . . . 1 . . . . . . . 1 1 1 . . . . Level Access Points 1 | . . . . . . . . . . . . . . . . . . . . . . . . . . . . . . . . 1 . . . Branch Access Points 4 | . . . . . . . . . . . . . 1 . . . . 1 . . . . . . . . . . . . . 1 . 1 . Emergency Access Points 2 | . . . . . . . . . . . . 1 . . . . 1 . . . . . . . . . . . . . . . . . . Terminal Index 2 | . . . 1 . . . . . . . . . . . . . . . . . . . . . . . . . . . . 1 . . . Alert Level 8 | . . . 2 . . . 1 . . . . . 1 . . . . 2 . 1 . . . . . . . . . . . 1 . . . Unreport Threat 9 | . . . 2 . . . . . . . . . 1 . . 1 . 3 . . . . . . . . . . . . . 2 . . . Locate Traps 1 | . . . . . . . . . . . . . 1 . . . . . . . . . . . . . . . . . . . . . . Garrison Registry 2 | . . . . . . . . . 1 . . 1 . . . . . . . . . . . . . . . . . . . . . . . Proto ID Catalog 1 | . . . . . 1 . . . . . . . . . . . . . . . . . . . . . . . . . . . . . . Fabricator Hacks 1 | . . . . . . . . . . . . . 1 . . . . . . . . . . . . . . . . . . . . . . Build 1 | . . . . . . . . . . . . . 1 . . . . . . . . . . . . . . . . . . . . . . Repair Station Hacks 2 | . . . . . . . . . . . . . . . . 2 . . . . . . . . . . . . . . . . . . . Scan Component 1 | . . . . . . . . . . . . . . . . 1 . . . . . . . . . . . . . . . . . . . Repair 1 | . . . . . . . . . . . . . . . . 1 . . . . . . . . . . . . . . . . . . . Recycling Unit Hacks 5 | . . . . . . . . . . 4 . . . . . 1 . . . . . . . . . . . . . . . . . . . Retrieve Components 5 | . . . . . . . . . . 4 . . . . . 1 . . . . . . . . . . . . . . . . . . . Scanalyzer 8 | . . . 2 . . . 2 . . . . . 2 . . . . 2 . . . . . . . . . . . . . . . . . Retrieve Study 8 | . . . 2 . . . 2 . . . . . 2 . . . . 2 . . . . . . . . . . . . . . . . . Garrison Access Hacks 6 | . . . . . . . 1 1 . . 1 . . . . 1 . 1 . . . . . . 1 . . . . . . . . . . Unlock Access 6 | . . . . . . . 1 1 . . 1 . . . . 1 . 1 . . . . . . 1 . . . . . . . . . . Unauthorized Hacks 11 | . . . . . . . 1 . . . 1 1 2 . . . . 2 . . . . . . 2 . 1 . . . . 1 . . . Terminals 10 | . . . . . . . 1 . . . 1 1 2 . . . . 2 . . . . . . 2 . . . . . . 1 . . . Assimilate 3 | . . . . . . . 1 . . . . . 1 . . . . . . . . . . . . . . . . . . 1 . . . Botnet 7 | . . . . . . . . . . . 1 1 1 . . . . 2 . . . . . . 2 . . . . . . . . . . Fabricators . | . . . . . . . . . . . . . . . . . . . . . . . . . . . . . . . . . . . . Repair Stations 1 | . . . . . . . . . . . . . . . . . . . . . . . . . . . 1 . . . . . . . . Patch 1 | . . . . . . . . . . . . . . . . . . . . . . . . . . . 1 . . . . . . . . Recycling Units . | . . . . . . . . . . . . . . . . . . . . . . . . . . . . . . . . . . . . Scanalyzers . | . . . . . . . . . . . . . . . . . . . . . . . . . . . . . . . . . . . . Garrison Access . | . . . . . . . . . . . . . . . . . . . . . . . . . . . . . . . . . . . . Data Cores Recovered 2 | . . . . . . . . . . . . . . . . . . 1 . . . . . . . . . . . . . 1 . . . Used 1 | . . . . . . . . . . . . . . . . . . 1 . . . . . . . . . . . . . . . . . Hacking Detections 66 | . . . 7 . . . 2 1 . 1 4 3 11 . . 8 . 8 2 2 . . . . 3 . 1 . . . 1 9 2 1 . Full Trace Events 5 | . . . . . . . . . . . . . . . . 2 . . 1 . . . . . . . . . . . . 1 1 . . Feedback Events . | . . . . . . . . . . . . . . . . . . . . . . . . . . . . . . . . . . . . Feedback Blocked . | . . . . . . . . . . . . . . . . . . . . . . . . . . . . . . . . . . . . Robot Schematics Acquired . | . . . . . . . . . . . . . . . . . . . . . . . . . . . . . . . . . . . . Robots Built . | . . . . . . . . . . . . . . . . . . . . . . . . . . . . . . . . . . . . Authchips . | . . . . . . . . . . . . . . . . . . . . . . . . . . . . . . . . . . . . Time . | . . . . . . . . . . . . . . . . . . . . . . . . . . . . . . . . . . . . Total Robot Build Rating . | . . . . . . . . . . . . . . . . . . . . . . . . . . . . . . . . . . . . Part Schematics Acquired 4 | . . . . . . . . . . . . . . . . . . . . . . . 4 . . . . . . . . . . . . Parts Built 2 | . . . . . . . . . . . . . 2 . . . . . . . . . . . . . . . . . . . . . . Authchips . | . . . . . . . . . . . . . . . . . . . . . . . . . . . . . . . . . . . . Time 35 | . . . . . . . . . . . . . 35 . . . . . . . . . . . . . . . . . . . . . . Total Part Build Rating 12 | . . . . . . . . . . . . . 12 . . . . . . . . . . . . . . . . . . . . . . Part Studies Acquired 8 | . . . 2 . . . 2 . . . . . 2 . . . . 2 . . . . . . . . . . . . . . . . . Parts Repaired 1 | . . . . . . . . . . . . . . . . 1 . . . . . . . . . . . . . . . . . . . Time 56 | . . . . . . . . . . . . . . . . 56 . . . . . . . . . . . . . . . . . . . Parts Recycled . | . . . . . . . . . . . . . . . . . . . . . . . . . . . . . . . . . . . . Recycled Matter . | . . . . . . . . . . . . . . . . . . . . . . . . . . . . . . . . . . . . Retrieved Matter . | . . . . . . . . . . . . . . . . . . . . . . . . . . . . . . . . . . . . Retrieved Components 16 | . . . . . . . . . . 7 . . . . . 9 . . . . . . . . . . . . . . . . . . . Parts Scanalyzed . | . . . . . . . . . . . . . . . . . . . . . . . . . . . . . . . . . . . . Part Schematics Acquired . | . . . . . . . . . . . . . . . . . . . . . . . . . . . . . . . . . . . . Parts Damaged . | . . . . . . . . . . . . . . . . . . . . . . . . . . . . . . . . . . . . Bothacking | -11 -10 -10 -9 -9 -9 -8 -8 -8 -8 -8 -6 -6 -6 -6 -6 -5 -5 -5 -5 -5 -5 -5 -5 -4 -4 -4 -4 -4 -4 -4 -3 -3 -2 -1 -1 ------------ Run | Yrd Mat Min Mat Min Exi Min Mat Sto Gar Rec Fac Gar Fac Low Low Fac Gar Fac Gar Fac Upp Upp Zhi Pro Fac Gar Fac Upp Upp War Pro Res Res Acc Com Used RIF Installer . | . . . . . . . . . . . . . . . . . . . . . . . . . . . . . . . . . . . . Robots Hacked . | . . . . . . . . . . . . . . . . . . . . . . . . . . . . . . . . . . . . Non-combat . | . . . . . . . . . . . . . . . . . . . . . . . . . . . . . . . . . . . . Combat . | . . . . . . . . . . . . . . . . . . . . . . . . . . . . . . . . . . . . Robot Hacks Applied . | . . . . . . . . . . . . . . . . . . . . . . . . . . . . . . . . . . . . Relay Couplers Released 107 | . . . . . . . 2 . 19 . . 31 . . . . 26 . 19 . . . . . . 9 . . . . . . 1 . . Machine Destruction 107 | . . . . . . . 2 . 19 . . 31 . . . . 26 . 19 . . . . . . 9 . . . . . . 1 . . Fabnet Peak Effective % . | . . . . . . . . . . . . . . . . . . . . . . . . . . . . . . . . . . . . Robots Rewired 26 | . . . . . . . . . . 3 . . . . . . 9 . 3 . . . . . . . . . . . 11 . . . . Allies Hacked 1 | . . . . . . . . . . . . . . . . . . . . . . . . . . . . . . . . . . . 1 Hacks Repelled . | . . . . . . . . . . . . . . . . . . . . . . . . . . . . . . . . . . . . Allies | -11 -10 -10 -9 -9 -9 -8 -8 -8 -8 -8 -6 -6 -6 -6 -6 -5 -5 -5 -5 -5 -5 -5 -5 -4 -4 -4 -4 -4 -4 -4 -3 -3 -2 -1 -1 -------- Run | Yrd Mat Min Mat Min Exi Min Mat Sto Gar Rec Fac Gar Fac Low Low Fac Gar Fac Gar Fac Upp Upp Zhi Pro Fac Gar Fac Upp Upp War Pro Res Res Acc Com Total Allies 36 | . . . . . . . 1 . . 3 . . 1 . . . 11 . 3 . . . . . . . . . . . 11 1 . 3 2 Largest Group 11 | . . . . . . . 1 1 1 3 3 . 1 . . . 6 6 3 1 1 . . . . . . . . . 11 4 . 2 4 Highest-Rated Group 876 | . . . . . . . 10 10 10 82 82 . 26 . . . 322 322 173 89 89 . . . . . . . . . 454 187 . 438 876 Highest-Rated Ally 219 | . . . . . . . 10 10 10 34 34 . 26 . . . 80 80 99 89 89 . . . . . . . . . 56 56 . 219 219 Initial Warlord ECA Mod 45 | . . . . . . . . . . 12 10 10 24 24 24 23 23 31 31 42 42 42 42 41 41 41 45 45 45 45 44 44 43 42 42 Total Orders 16 | . . . . . . . . . 2 . . . . . . . . . 8 . . . . . . . . . . . . . . 6 . STAY 8 | . . . . . . . . . 1 . . . . . . . . . 4 . . . . . . . . . . . . . . 3 . FOLLOW 8 | . . . . . . . . . 1 . . . . . . . . . 4 . . . . . . . . . . . . . . 3 . Ally Attacks 367 | . . . . . . . . . . . 7 . . . . . 67 34 26 5 . . . . . . . . . . 65 26 . 37 100 Total Damage 22372 | . . . . . . . . . . . 240 . . . . . 2511 916 775 224 . . . . . . . . . . 1916 659 . 3198 11933 Kills 79 | . . . . . . . . . . . 1 . . . . . 14 5 5 1 . . . . . . . . . . 10 1 . 20 22 Allies Corrupted 1 | . . . . . . . . . . . . . . . . . . . . . . . . . . . . . . . . 1 . . . Allies Melted 1 | . . . . . . . . . . . . . . . . . . . . . . . . . . . . . . . . . 1 . . Field Lobotomies 5 | . . . . . . . . . . . . . . . . . . . . . . . . . . . . . . . . . . 3 2 Intel | -11 -10 -10 -9 -9 -9 -8 -8 -8 -8 -8 -6 -6 -6 -6 -6 -5 -5 -5 -5 -5 -5 -5 -5 -4 -4 -4 -4 -4 -4 -4 -3 -3 -2 -1 -1 ------- Run | Yrd Mat Min Mat Min Exi Min Mat Sto Gar Rec Fac Gar Fac Low Low Fac Gar Fac Gar Fac Upp Upp Zhi Pro Fac Gar Fac Upp Upp War Pro Res Res Acc Com Active Infowar (turns) 17739 | . . 44 . . 1 . . . . . . . 762 564 70 766 1625 1651 1605 254 447 479 247 215 356 447 345 367 371 1253 971 1362 1658 1112 767 Optics 17694 | . . . . . . . . . . . . . 762 564 70 766 1625 1651 1605 254 447 479 247 215 356 447 345 367 371 1253 971 1362 1658 1112 767 Sensors 44 | . . 44 . . . . . . . . . . . . . . . . . . . . . . . . . . . . . . . . . T.N.C. 1 | . . . . . 1 . . . . . . . . . . . . . . . . . . . . . . . . . . . . . . Spoofing 1 | . . . . . . . . . . . . . . . . . . 1 . . . . . . . . . . . . . . . . . Robot Analysis Total 4 | . . . . . . . . . . . . . . . . . . . . . . . 4 . . . . . . . . . . . . Derelict Logs Recovered 10 | . . 1 . . . . . . . . . . . 1 . . . . . . 2 2 . 1 . . . 1 2 . . . . . . Drone Launches . | . . . . . . . . . . . . . . . . . . . . . . . . . . . . . . . . . . . . Drone Recoveries . | . . . . . . . . . . . . . . . . . . . . . . . . . . . . . . . . . . . . Exploration | -11 -10 -10 -9 -9 -9 -8 -8 -8 -8 -8 -6 -6 -6 -6 -6 -5 -5 -5 -5 -5 -5 -5 -5 -4 -4 -4 -4 -4 -4 -4 -3 -3 -2 -1 -1 ------------- Run | Yrd Mat Min Mat Min Exi Min Mat Sto Gar Rec Fac Gar Fac Low Low Fac Gar Fac Gar Fac Upp Upp Zhi Pro Fac Gar Fac Upp Upp War Pro Res Res Acc Com Turns Passed 25677 | 54 267 237 743 47 406 212 774 14 1416 581 891 1866 1237 564 70 766 1625 1651 1605 254 447 479 247 215 356 447 345 367 371 1253 971 1362 1658 1112 767 Spaces Moved 16999 | 42 195 147 396 28 215 132 339 8 706 341 504 948 825 438 63 495 1092 1190 1199 206 367 437 218 189 298 241 213 330 266 878 673 1050 1340 596 394 Core 17 | 17 . . . . . . . . . . . . . . . . . . . . . . . . . . . . . . . . . . . Treads 3170 | . . . 318 28 215 132 339 8 706 341 504 579 . . . . . . . . . . . . . . . . . . . . . . . Legs 13812 | 25 195 147 78 . . . . . . . . 369 825 438 63 495 1092 1190 1199 206 367 437 218 189 298 241 213 330 266 878 673 1050 1340 596 394 Wheels . | . . . . . . . . . . . . . . . . . . . . . . . . . . . . . . . . . . . . Hover . | . . . . . . . . . . . . . . . . . . . . . . . . . . . . . . . . . . . . Flight . | . . . . . . . . . . . . . . . . . . . . . . . . . . . . . . . . . . . . Fastest Speed 50 | 50 120 120 120 160 160 160 160 163 163 158 155 120 116 112 112 110 106 102 102 102 102 102 102 102 103 102 105 108 108 107 107 107 107 110 110 Average Speed 118 | 94 120 120 152 160 160 160 162 163 163 158 155 148 116 112 112 113 108 103 102 102 103 102 102 102 103 107 106 108 108 113 107 108 109 110 110 Slowest Speed 260 | 150 120 120 160 160 160 160 163 163 163 163 158 260 120 116 112 182 113 167 180 102 169 102 102 102 103 176 108 108 108 178 107 110 112 110 190 Overloaded Moves . | . . . . . . . . . . . . . . . . . . . . . . . . . . . . . . . . . . . . Propulsion Burnouts . | . . . . . . . . . . . . . . . . . . . . . . . . . . . . . . . . . . . . Robots Hopped . | . . . . . . . . . . . . . . . . . . . . . . . . . . . . . . . . . . . . Potential Cave-ins 6 | . . . . . . . . . . . . . . . . . . . . . . . . . . 5 . . . 1 . . . . . Cave-ins Triggered . | . . . . . . . . . . . . . . . . . . . . . . . . . . . . . . . . . . . . Teleports 1 | . . . . . . . . . . . . . . . . . . . . . . . 1 . . . . . . . . . . . . Exploration Rate (%) 42 | 5 38 39 42 6 60 52 28 4 77 44 18 89 30 65 17 21 93 34 89 8 65 72 61 43 10 26 5 57 56 90 69 27 44 20 19 Regions Visited 35 Branch Regions 17 Pre-discovered Areas 4 | . . . . . . . . . . . . . . 1 . . . . . . . . . 1 . . . . 2 . . . . . . Known Exits Taken 13 | . . . . . . . . 1 . . 1 . 1 . . 1 . 1 . 1 1 . . 1 1 . 1 . . . . 1 1 1 . Unknown Exits Taken 17 | 1 1 1 1 1 1 1 1 . . 1 . . . 1 1 . . . . . . 1 1 . . . . 1 1 1 1 . . . . Scrap Searched 12 | . . . . . . 1 . . . . . . . 3 . . . . . . 3 3 . . . . . 1 . . 1 . . . . Spaces Dug 322 | . . . . . . . . . . . . . 12 2 . 4 46 8 6 6 . 50 . 6 4 21 . 39 17 2 . 15 1 45 38 Terrain Destroyed 1310 | . . . . . . . . . 69 . . 219 27 14 . 7 100 64 88 13 6 50 . 14 11 21 9 39 37 9 3 62 47 334 67 Melee 1 | . . . . . . . . . . . . . . 1 . . . . . . . . . . . . . . . . . . . . . Projectile 325 | . . . . . . . . . . . . 5 5 13 . 7 13 64 27 13 6 4 . 14 11 21 9 . 4 9 3 19 7 54 17 AOE 980 | . . . . . . . . . 69 . . 214 20 . . . 86 . 60 . . 46 . . . . . 39 33 . . 43 40 280 50 Terrain Rammed . | . . . . . . . . . . . . . . . . . . . . . . . . . . . . . . . . . . . . Walls Destroyed . | . . . . . . . . . . . . . . . . . . . . . . . . . . . . . . . . . . . . Machines Disabled . | . . . . . . . . . . . . . . . . . . . . . . . . . . . . . . . . . . . . Actions | -11 -10 -10 -9 -9 -9 -8 -8 -8 -8 -8 -6 -6 -6 -6 -6 -5 -5 -5 -5 -5 -5 -5 -5 -4 -4 -4 -4 -4 -4 -4 -3 -3 -2 -1 -1 --------- Run | Yrd Mat Min Mat Min Exi Min Mat Sto Gar Rec Fac Gar Fac Low Low Fac Gar Fac Gar Fac Upp Upp Zhi Pro Fac Gar Fac Upp Upp War Pro Res Res Acc Com Total 21001 | 54 227 185 488 28 277 132 481 8 886 374 582 1215 1015 472 62 662 1430 1501 1457 231 429 463 234 199 336 355 296 338 328 1095 894 1231 1499 918 619 Wait 1880 | . 17 23 57 . 58 . 73 . 100 3 34 94 100 8 . 112 104 203 120 5 48 12 . 4 6 50 40 5 39 105 31 94 70 185 80 Move 16966 | 41 194 146 395 27 214 131 338 8 705 340 504 947 824 437 62 495 1091 1189 1196 205 366 436 217 188 298 240 212 329 265 877 672 1049 1339 595 394 Hop . | . . . . . . . . . . . . . . . . . . . . . . . . . . . . . . . . . . . . Pick Up 131 | 8 5 2 2 . 1 . 8 . 4 1 4 18 5 1 . 7 8 4 8 2 2 2 1 . 4 2 . . 1 9 1 4 13 3 1 Fast Attach 116 | 4 1 . 1 . 1 . 4 . 4 . 1 13 4 3 . 7 6 8 6 1 3 1 5 . 5 4 1 . 1 15 . 6 6 1 4 Attach 76 | 1 1 . 1 . . . 1 . 3 . 3 11 . . . 1 2 2 5 1 1 . . . 2 2 1 . 2 . . 4 4 7 21 Detach 14 | . . . . . . . . . 1 . . . . . . 1 . . 1 . . . . . . . . . . . . 1 . 2 8 Swap 184 | . 4 4 4 . 1 . 6 . 6 2 1 13 17 2 . 9 22 13 9 1 4 6 3 . 2 5 11 2 6 11 2 2 9 4 3 Drop 205 | . 4 . 2 . 2 . 11 . 1 1 2 16 17 5 . 13 18 13 9 2 3 2 4 . 8 3 8 . 2 27 3 7 17 4 1 Fire 1061 | . . 10 23 1 . . 36 . 62 7 29 103 43 14 . 16 68 67 75 12 2 4 4 7 9 49 22 2 12 43 52 63 41 116 69 Melee 2 | . . . . . . . . . . . . . . 2 . . . . . . . . . . . . . . . . . . . . . Ram 1 | . . . . . . . . . . . . . . . . . . . . . . . . . . . . . . . . . . . 1 Kick 53 | . 1 . . . . . . . . . . . 5 . . 1 . 2 1 2 . . . . 2 . 1 . . . . 1 . 1 36 Crush 13 | . . . 3 . . 1 4 . . 1 4 . . . . . . . . . . . . . . . . . . . . . . . . Escape Stasis 36 | . . . . . . . . . . . . . . . . . 25 . 10 . . . . . . . . . . . . . . . 1 Rewire 255 | . . . . . . . . . . 19 . . . . . . 86 . 17 . . . . . . . . . . . 133 . . . . Trap . | . . . . . . . . . . . . . . . . . . . . . . . . . . . . . . . . . . . . Miscellaneous 8 | . . . . . . . . . . . . . . . . . . . . . . . . . . . . . . 8 . . . . . Route ------- -11/Scrapyard -10/Materials (discovered 2 exits: [*Min] / [*Sub]) -10/Mines -9/Materials (discovered 2 exits: *Mat / [*Min]) -9/Mines -9/Exiles -8/Mines -8/Materials -8/Storage -8/Garrison (discovered 3 exits: *Rec x3) -8/Recycling -6/Factory -6/Garrison (discovered 3 exits: *Fac x3) -6/Factory (discovered 2 exits: *Low x2) -6/Lower Caves -6/Lower Caves -5/Factory (discovered 4 exits: *Fac x2 / *Upp / Gar) -5/Garrison (discovered 3 exits: *Fac x3) -5/Factory (discovered 4 exits: *Fac / Upp x2 / Gar) -5/Garrison (discovered 3 exits: *Fac x3) -5/Factory -5/Upper Caves -5/Upper Caves (discovered 2 exits: *Fac / *Zhi) -5/Zhirov -4/Proximity Caves -4/Factory -4/Garrison -4/Factory -4/Upper Caves -4/Upper Caves (discovered 2 exits: *Res / *War) -4/Warlord -3/Proximity Caves -3/Research (discovered 6 exits: *Res x3 / Arm / *Qua x2) -2/Research (discovered 2 exits: *Acc x2) -1/Access (discovered 2 exits: [*Sur] / *Com) -1/Command History --------- Turn | Location | Event 6 | -11/Scrapyard | Discovered new exit (range 15) 55 | -11/Scrapyard | Entered Materials 56 | -10/Materials | Met a group of wandering Federalists 256 | -10/Materials | Discovered new exit (range 10) 281 | -10/Materials | Discovered new exit (range 12) 306 | -10/Materials | Build established: Mutant 322 | -10/Materials | Entered Mines 343 | -10/Mines | Found a damaged Exp. Sensor Array with a note attached 345 | -10/Mines | Found Prototype Device 346 | -10/Mines | Identified Exp. Sensor Array 352 | -10/Mines | Assembled infested the area 439 | -10/Mines | Learned Materials stockpile data 468 | -10/Mines | A weapon hastily lodged in a ceiling crevice suddenly fell to the ground 541 | -10/Mines | Discovered new exit (range 10) 559 | -10/Mines | Entered Materials 559 | -9/Materials | Evolved 2 slots: Propulsion x1, Utility x1 782 | -9/Materials | Discovered new exit (range 3) 1251 | -9/Materials | Discovered new exit (range 16) 1302 | -9/Materials | Entered Mines 1338 | -9/Mines | Deemed a non-threat by the Exiles lab entrance 1339 | -9/Mines | Discovered new exit (range 5) 1349 | -9/Mines | Entered Exiles 1389 | -9/Exiles | Met 8R-AWN 1417 | -9/Exiles | Met EX-HEX 1461 | -9/Exiles | Met EX-BIN 1479 | -9/Exiles | Aligned with FarCom system 1481 | -9/Exiles | Given EX-Vault access code 1517 | -9/Exiles | Opened EX-Vault 1529 | -9/Exiles | Found Modified TNC 1536 | -9/Exiles | Found Field Lobotomy Kit 1570 | -9/Exiles | Warned to stay clear of 0b10 Research branches 1587 | -9/Exiles | Exiles lab attacked by MAIN.C 1670 | -9/Exiles | Discovered new exit (range 14) 1755 | -9/Exiles | Left Exiles lab with Field Lobotomy Kit 1755 | -9/Exiles | Entered Mines 1941 | -8/Mines | Discovered new exit (range 15) 1967 | -8/Mines | Entered Materials 1967 | -8/Materials | Evolved 2 slots: Utility x1, Weapon x1 2293 | -8/Materials | Build established: Skirmisher 2638 | -8/Materials | Discovered new exit (range 3) 2696 | -8/Materials | Identified exit to Garrison 2741 | -8/Materials | Entered Storage 2741 | -8/Storage | Accompanied by 1 ally 2755 | -8/Storage | Identified exit to Garrison 2755 | -8/Storage | Entered Garrison 2755 | -8/Garrison | Accompanied by 1 ally 2884 | -8/Garrison | Triggered checkpoint 2930 | -8/Garrison | Garrison Relay disabled 3153 | -8/Garrison | Triggered checkpoint 3377 | -8/Garrison | Triggered checkpoint 3413 | -8/Garrison | Discovered new exit (range 12) 3483 | -8/Garrison | Triggered checkpoint 3519 | -8/Garrison | Garrison Relay disabled 3534 | -8/Garrison | Discovered new exit (range 18) 3534 | -8/Garrison | Discovered new exit (range 76) 3534 | -8/Garrison | Discovered new exit (range 44) 3603 | -8/Garrison | Phase Generator disabled 3754 | -8/Garrison | Build established: Tank 3779 | -8/Garrison | Garrison Relay disabled 4036 | -8/Garrison | Garrison Relay disabled 4089 | -8/Garrison | Triggered checkpoint 4139 | -8/Garrison | Garrison Relay disabled 4171 | -8/Garrison | Entered Recycling 4517 | -8/Recycling | Discovered new exit (range 5) 4536 | -8/Recycling | Scanned before Scraplab entrance 4752 | -8/Recycling | Entered Factory 4752 | -6/Factory | Accompanied by 3 allies 4752 | -6/Factory | Evolved 4 slots: Propulsion x1, Utility x2, Weapon x1 5643 | -6/Factory | Identified exit to Garrison 5643 | -6/Factory | Entered Garrison 5681 | -6/Garrison | Phase Generator disabled 5791 | -6/Garrison | Garrison Relay disabled 5826 | -6/Garrison | Triggered checkpoint 5866 | -6/Garrison | Discovered new exit (range 80) 5866 | -6/Garrison | Discovered new exit (range 32) 5866 | -6/Garrison | Discovered new exit (range 80) 5995 | -6/Garrison | Build established: Scavenger-Tank 6119 | -6/Garrison | Triggered checkpoint 6145 | -6/Garrison | Triggered checkpoint 6164 | -6/Garrison | Garrison Relay disabled 6264 | -6/Garrison | Garrison Relay disabled 6309 | -6/Garrison | Triggered checkpoint 6347 | -6/Garrison | Garrison Relay disabled 6567 | -6/Garrison | Triggered checkpoint 6583 | -6/Garrison | Triggered checkpoint 6622 | -6/Garrison | Destroyed 7 combat bots 6629 | -6/Garrison | Lost 5 parts (2n1u2w) 6872 | -6/Garrison | Triggered checkpoint 6898 | -6/Garrison | Lost 4 parts (2n2u) 7027 | -6/Garrison | Garrison Relay disabled 7184 | -6/Garrison | Garrison Relay disabled 7246 | -6/Garrison | Garrison Relay disabled 7267 | -6/Garrison | Triggered checkpoint 7509 | -6/Garrison | Entered Factory 7930 | -6/Factory | Fabricated KE Penetrator (x2) 8323 | -6/Factory | Garrison activated, responded to threat 8442 | -6/Factory | Identified exit to Lower Caves 8674 | -6/Factory | Found Prototype Launcher 8674 | -6/Factory | Identified Rocket Array 8746 | -6/Factory | Entered Lower Caves 8758 | -6/Lower Caves | Met a Warlord Commander 8759 | -6/Lower Caves | Learned location of Warlord (-4) 8760 | -6/Lower Caves | Warlord Commander delivered Encrypted Comm Array 8809 | -6/Lower Caves | Found Encrypted Comm Array 8946 | -6/Lower Caves | Learned 8 Factory zone layouts 9247 | -6/Lower Caves | Discovered new exit (range 7) 9249 | -6/Lower Caves | Encountered a Warlord checkpoint 9310 | -6/Lower Caves | Entered another Lower Caves area 9374 | -6/Lower Caves | Discovered new exit (range 5) 9380 | -6/Lower Caves | Entered Factory 9380 | -5/Factory | Evolved 2 slots: Power x1, Utility x1 9381 | -5/Factory | Identified exit to Factory 9776 | -5/Factory | Repaired Neutrino Core 9830 | -5/Factory | Discovered new exit (range 21) 10089 | -5/Factory | Discovered exit to Factory (range 22) 10100 | -5/Factory | Garrison activated, responded to threat 10146 | -5/Factory | Identified exit to Garrison 10146 | -5/Factory | Entered Garrison 10280 | -5/Garrison | Garrison Relay disabled 10280 | -5/Garrison | Garrison Relay disabled 10640 | -5/Garrison | Triggered checkpoint 10684 | -5/Garrison | Triggered checkpoint 10693 | -5/Garrison | Garrison Relay disabled 10745 | -5/Garrison | Triggered checkpoint 10812 | -5/Garrison | Triggered checkpoint 10816 | -5/Garrison | Discovered new exit (range 19) 10835 | -5/Garrison | Garrison Relay disabled 10928 | -5/Garrison | Triggered checkpoint 11019 | -5/Garrison | Destroyed 7 combat bots 11023 | -5/Garrison | Build established: Scavenger-Skirmisher 11044 | -5/Garrison | Triggered checkpoint 11134 | -5/Garrison | Discovered new exit (range 21) 11160 | -5/Garrison | Triggered checkpoint 11170 | -5/Garrison | Garrison Relay disabled 11374 | -5/Garrison | Spotted B-75 Beast 11398 | -5/Garrison | Destroyed B-75 Beast 11541 | -5/Garrison | Discovered new exit (range 19) 11594 | -5/Garrison | Triggered checkpoint 11619 | -5/Garrison | Found embedded Infiltrators 11629 | -5/Garrison | Garrison Relay disabled 11640 | -5/Garrison | Triggered checkpoint 11694 | -5/Garrison | Build established: Scavenger-Tank 11771 | -5/Garrison | Entered Factory 11771 | -5/Factory | Accompanied by 6 allies 12208 | -5/Factory | Lost 3 allies 12284 | -5/Factory | Build established: Scavenger-Skirmisher 12671 | -5/Factory | First assault squad dispatched 12726 | -5/Factory | Build established: Scavenger-Gunner 13202 | -5/Factory | Identified exit to Upper Caves 13244 | -5/Factory | Discovered exit to Factory (range 4) 13401 | -5/Factory | Identified exit to Garrison 13422 | -5/Factory | Entered Garrison 13468 | -5/Garrison | Triggered checkpoint 13483 | -5/Garrison | Garrison Relay disabled 13672 | -5/Garrison | Triggered checkpoint 13732 | -5/Garrison | Garrison Relay disabled 13784 | -5/Garrison | Discovered new exit (range 10) 13891 | -5/Garrison | Discovered new exit (range 9) 13950 | -5/Garrison | Triggered checkpoint 14085 | -5/Garrison | Phase Generator disabled 14095 | -5/Garrison | Rewired Striker 14247 | -5/Garrison | Triggered checkpoint 14385 | -5/Garrison | Discovered new exit (range 12) 14499 | -5/Garrison | System corruption reached 10% 14843 | -5/Garrison | Attempted to access garrison exit controls, blocked by remote lockdown 14856 | -5/Garrison | Build established: Scavenger-Skirmisher 14941 | -5/Garrison | Attempted to access garrison exit controls, blocked by remote lockdown 15027 | -5/Garrison | Entered Factory 15027 | -5/Factory | Accompanied by 1 ally 15225 | -5/Factory | Discovered exit to Upper Caves (range 9) 15281 | -5/Factory | Entered Upper Caves 15281 | -5/Upper Caves | Accompanied by 1 ally 15298 | -5/Upper Caves | Learned 8 Factory zone layouts 15374 | -5/Upper Caves | Identified exit to Upper Caves 15478 | -5/Upper Caves | Attracted the attention of an 0b10 checkpoint 15597 | -5/Upper Caves | Build established: Scavenger-Gunner 15728 | -5/Upper Caves | Entered another Upper Caves area 15745 | -5/Upper Caves | Discovered exit to Factory (range 15) 16175 | -5/Upper Caves | Learned Factory stockpile data 16199 | -5/Upper Caves | Discovered new exit (range 9) 16207 | -5/Upper Caves | Entered Zhirov 16207 | -5/Zhirov | Discovered new exit (range 3) 16271 | -5/Zhirov | Found Alien Artifact 16271 | -5/Zhirov | Identified Integrated Dissipator 16271 | -5/Zhirov | Installed Integrated Dissipator, increased core heat dissipation (+20) 16293 | -5/Zhirov | Found Alien Artifact 16293 | -5/Zhirov | Identified Transdimensional Reconstructor 16293 | -5/Zhirov | Warped through subspace 16454 | -5/Zhirov | Entered Proximity Caves 16570 | -4/Proximity Caves | Attracted the attention of an 0b10 outpost 16574 | -4/Proximity Caves | Learned location of Testing (-2) 16653 | -4/Proximity Caves | Discovered exit to Factory (range 17) 16669 | -4/Proximity Caves | Entered Factory 16669 | -4/Factory | Evolved 2 slots: Propulsion x1, Utility x1 16776 | -4/Factory | Found Imp. Powered Armor 16779 | -4/Factory | Found Imp. Powered Armor 16782 | -4/Factory | Found Imp. Powered Armor 16785 | -4/Factory | Found Imp. Powered Armor 16788 | -4/Factory | Found Imp. Powered Armor 17025 | -4/Factory | Identified exit to Garrison 17025 | -4/Factory | Entered Garrison 17074 | -4/Garrison | Garrison Relay disabled 17079 | -4/Garrison | Build established: Scavenger-Tank 17344 | -4/Garrison | Lost 3 parts (2n1w) 17367 | -4/Garrison | Destroyed 10 combat bots 17377 | -4/Garrison | Triggered checkpoint 17423 | -4/Garrison | Garrison Relay disabled 17460 | -4/Garrison | Discovered new exit (range 11) 17472 | -4/Garrison | Entered Factory 17754 | -4/Factory | Discovered new exit (range 5) 17761 | -4/Factory | Identified exit to Upper Caves 17817 | -4/Factory | Entered Upper Caves 18150 | -4/Upper Caves | Learned Research stockpile data 18170 | -4/Upper Caves | Discovered new exit (range 8) 18184 | -4/Upper Caves | Entered another Upper Caves area 18191 | -4/Upper Caves | Discovered new exit (range 21) 18224 | -4/Upper Caves | Learned location of Armory (-3) 18423 | -4/Upper Caves | Attracted the attention of an 0b10 outpost 18534 | -4/Upper Caves | Learned location of Quarantine (-3) 18538 | -4/Upper Caves | Discovered new exit (range 20) 18555 | -4/Upper Caves | Entered Warlord 18594 | -4/Warlord | System corruption cleaned by Quarantine Array 18729 | -4/Warlord | Found Prototype Device 18729 | -4/Warlord | Identified System Purifier 18739 | -4/Warlord | Found Prototype Device 18739 | -4/Warlord | Identified Exp. Phase Shifter 18762 | -4/Warlord | Found Prototype Reactor 18776 | -4/Warlord | Found Prototype Hackware 18980 | -4/Warlord | Visited the Vortex Lab 18990 | -4/Warlord | Found Prototype Launcher 18990 | -4/Warlord | Identified Vortex Catalyst Activator 18993 | -4/Warlord | Found Prototype Energy Gun 18993 | -4/Warlord | Identified Vortex Rail 18996 | -4/Warlord | Found Vortex Rail 18997 | -4/Warlord | Warlord's base attacked by MAIN.C 19103 | -4/Warlord | Met Warlord 19347 | -4/Warlord | Warlord forces counterattacked 19359 | -4/Warlord | Spotted B-90 Cyclops 19363 | -4/Warlord | Spotted B-86 Titan 19371 | -4/Warlord | Found Prototype Ballistic Cannon 19371 | -4/Warlord | Identified Hvy. Autocannon 19374 | -4/Warlord | Destroyed B-90 Cyclops 19380 | -4/Warlord | Destroyed B-86 Titan 19424 | -4/Warlord | Lost 8 allies 19485 | -4/Warlord | Spotted Striker 19521 | -4/Warlord | Spotted Executioner 19530 | -4/Warlord | Spotted Executioner 19530 | -4/Warlord | Spotted Striker 19573 | -4/Warlord | Found Prototype Device 19576 | -4/Warlord | Identified Adv. Kinecellerator 19579 | -4/Warlord | Found Prototype Processor 19579 | -4/Warlord | Identified Exp. Core Analyzer 19649 | -4/Warlord | Lost 22 allies 19672 | -4/Warlord | Warlord base infiltrated, sounded retreat 19761 | -4/Warlord | Spotted Striker 19794 | -4/Warlord | Discovered new exit (range 14) 19808 | -4/Warlord | Entered Proximity Caves 19873 | -3/Proximity Caves | Build established: Scavenger-Gunner 19887 | -3/Proximity Caves | Spotted B-86 Titan 20179 | -3/Proximity Caves | Attracted the attention of an 0b10 checkpoint 20231 | -3/Proximity Caves | Snuck into a huge 0b10 base via the rear entrance 20411 | -3/Proximity Caves | Discovered new exit (range 8) 20627 | -3/Proximity Caves | Lost 7 allies 20646 | -3/Proximity Caves | Spotted B-86 Titan 20654 | -3/Proximity Caves | Destroyed B-86 Titan 20779 | -3/Proximity Caves | Entered Research 20779 | -3/Research | Accompanied by 4 allies 20779 | -3/Research | Evolved 2 slots: Utility x2 21033 | -3/Research | Identified Ghost Barrier 21178 | -3/Research | Identified exit to Armory 21178 | -3/Research | Identified exit to Quarantine 21267 | -3/Research | Lost 3 allies 21790 | -3/Research | Identified exit to Research 22141 | -3/Research | Entered another Research area 22141 | -2/Research | Warlord forces began assault on 0b10 22141 | -2/Research | Evolved 2 slots: Propulsion x1, Utility x1 22166 | -2/Research | Distinguished unit "Golden Rifle" dispatched to help 22166 | -2/Research | Distinguished unit "Lucky Slug" dispatched to help 22251 | -2/Research | Research machine network offline 22344 | -2/Research | Discovered new exit (range 10) 22356 | -2/Research | Identified exit to Access 22423 | -2/Research | Lost 6 allies 22542 | -2/Research | Spotted Striker 22547 | -2/Research | Spotted Striker 22547 | -2/Research | Spotted Striker 22563 | -2/Research | Destroyed Striker 22564 | -2/Research | Destroyed Striker 22587 | -2/Research | Lost 8 allies 22605 | -2/Research | Borebot progress halted 22607 | -2/Research | Spotted B-90 Cyclops 22632 | -2/Research | Spotted Executioner 22634 | -2/Research | Destroyed Executioner 22684 | -2/Research | Lost 3 allies 22746 | -2/Research | Found Prototype Device 22746 | -2/Research | Identified Thermal Barrier 22783 | -2/Research | Discovered exit to Access (range 22) 22814 | -2/Research | Borebot progress halted 22911 | -2/Research | Borebot progress halted 22934 | -2/Research | Spotted Striker 22947 | -2/Research | Destroyed Striker 23253 | -2/Research | Met up with Warlord 23254 | -2/Research | Warlord invited to help at Command 23254 | -2/Research | Given Cave Seal Controls access code 23524 | -2/Research | Found Adv. Kinecellerator 23600 | -2/Research | Spotted Striker 23746 | -2/Research | Spotted Executioner 23752 | -2/Research | Spotted Executioner 23756 | -2/Research | Destroyed Executioner 23758 | -2/Research | Destroyed Executioner 23773 | -2/Research | Found Exp. Core Analyzer 23799 | -2/Research | Entered Access 23799 | -1/Access | Evolved 2 slots: Utility x2 23856 | -1/Access | Energy Cycler disabled 23950 | -1/Access | Identified exit to Command 23969 | -1/Access | Lost 8 allies 23991 | -1/Access | Spotted B-99 Colossus 24005 | -1/Access | Assimilated B-99 Colossus with FLK Orb 24107 | -1/Access | Garrison activated, responded to threat 24170 | -1/Access | Discovered new exit (range 21) 24171 | -1/Access | Destroyed 17 combat bots 24299 | -1/Access | First assault squad dispatched 24817 | -1/Access | Spotted B-99 Colossus 24818 | -1/Access | Assimilated B-99 Colossus with FLK Orb 24823 | -1/Access | Spotted B-99 Colossus 24858 | -1/Access | Assimilated B-99 Colossus with FLK Orb 24911 | -1/Access | Entered Command 24911 | -1/Command | Accompanied by 2 allies 24922 | -1/Command | Spotted B-99 Colossus 24923 | -1/Command | Assimilated B-99 Colossus with FLK Orb 24966 | -1/Command | Disengaged cave seal 24967 | -1/Command | Welcomed Warlord to Command 25005 | -1/Command | High security lockdown imminent 25085 | -1/Command | High security lockdown engaged 25142 | -1/Command | Spotted B-99 Colossus 25153 | -1/Command | Assimilated B-99 Colossus with FLK Orb 25162 | -1/Command | Spotted Executioner 25162 | -1/Command | Spotted Striker 25167 | -1/Command | Spotted Executioner 25169 | -1/Command | Allies destroyed Striker 25176 | -1/Command | Destroyed Executioner 25229 | -1/Command | Lost 3 allies 25254 | -1/Command | Spotted M Guard 25257 | -1/Command | Warlord commented on Warlord statues 25258 | -1/Command | Spotted M Guard 25258 | -1/Command | Spotted Combat Programmer 25258 | -1/Command | Spotted Combat Programmer 25265 | -1/Command | Combat Programmer assimilated allied 2T-0HG(L) 25266 | -1/Command | Identified Vortex Chain Reactor 25268 | -1/Command | Spotted 2T-0HG(L) 25290 | -1/Command | Destroyed Y1-9QW(K) 25307 | -1/Command | Destroyed M Guard 25307 | -1/Command | All MAIN.C guards destroyed 25321 | -1/Command | Lost 9 parts (1p4n3u1w) 25321 | -1/Command | Lost 13 allies 25325 | -1/Command | Found Prototype Processor 25325 | -1/Command | Identified Exp. Melee Analysis Suite 25331 | -1/Command | Found Prototype Launcher 25331 | -1/Command | Identified Ragnarok Missile Launcher 25416 | -1/Command | Spotted Striker 25417 | -1/Command | Spotted Executioner 25425 | -1/Command | Spotted Striker 25427 | -1/Command | Spotted Executioner 25534 | -1/Command | Met MAIN.C 25536 | -1/Command | 0b10 Conduit disabled 25540 | -1/Command | Warlord shut down involuntarily 25565 | -1/Command | Destroyed MAIN.C Shell 25566 | -1/Command | System corruption reached 10% 25567 | -1/Command | MAIN.C activated Command garrisons 25611 | -1/Command | Core integrity fell below 50% 25630 | -1/Command | Lost 7 allies 25654 | -1/Command | Core integrity fell below 20% 25678 | -1/Command | Destroyed by G-73 Enforcer with Heavy Laser Last Messages --------------- 25658_ Kicked MAIN.C out of the way. 25659_ 0b10 Conduit collapses. 25659_ Kicked MAIN.C out of the way. 25660_ 0b10 Conduit collapses. 25660_ Kicked MAIN.C out of the way. 25661_ Destroyed Imp. Heavy Machine Gun. 25662_ 0b10 Conduit collapses. 25662_ Kicked MAIN.C. 25665_ Kicked MAIN.C out of the way. 25665_ Flexi-carbon Leg+ destroyed. 25666_ Kicked MAIN.C. 25669_ System corrupted: Component data lost. 25670_ Kicked MAIN.C. 25671_ Exp. Energy Well destroyed. 25673_ Kicked MAIN.C. 25673_ MAIN.C knocked back. 25675_ Kicked MAIN.C. 25677_ Centrium Leg destroyed. 25677_ Slammed into MAIN.C. 25677_ MAIN.C knocked back. Map ----- +----------------------------------------------------+ | ?????????????????????????????????????????????????? | | ?????????????????????????????????????????????????? | | ?????????????????????????????????????????????????? | | ?????????????????????????????????????????????????? | | ?????????????????????????????????????????????????? | | ?????????????????????????????????????????????????? | | ?????????????????????????????????????????????????? | | ?????????????????????????????????????????????????? | | ?????????????????????????????????????????????????? | | ?????????????????????????????????????????????????? | | ?????????????????????????????????????????????????? | | ?????????????????????????????????????????????????? | | ?????????????????????????????????????????????????? | | ?????????????????????????????????????????????????? | | ??????????????????#######################????????? | | ??????????????????#""""""" """" % %#????????? | | ??????????????????#"" "" %% #????????? | | ??????????????????#""""" "" ########## | | ??????????????????#"" """""""" =%!=% | | ??????????????????# % !!!%! % | | ??????????????????# % %%!!*%* | | ??????????????????# % % g g %*=########## | | ??????????????????# %% % % %% g ![#????????? | | ??????????????????# % %%b % % #????????? | | ??????????????????#% % % % %% #????????? | | ??????????????????#%%% %%@M % % """""#????????? | | ??????????????????# % """""#????????? | | ??????????????????# """""""#????????? | | ??????????????????# " " #????????? | | ??????????????????# " " #????????? | | ?????????????????" """" " #????????? | | ?????????????????" " """" #????????? | | ?????????????????" " " #????????? | | ?????????????????## " " #????????? | | ??????????????????# " """"""""#????????? | | ??????????????????# " " " #????????? | | ??????????????????######################?????????? | | ?????????????????????????????????????????????????? | | ?????????????????????????????????????????????????? | | ?????????????????????????????????????????????????? | | ?????????????????????????????????????????????????? | | ?????????????????????????????????????????????????? | | ?????????????????????????????????????????????????? | | ?????????????????????????????????????????????????? | | ?????????????????????????????????????????????????? | | ?????????????????????????????????????????????????? | | ?????????????????????????????????????????????????? | | ?????????????????????????????????????????????????? | | ?????????????????????????????????????????????????? | | ?????????????????????????????????????????????????? | +----------------------------------------------------+ Best States ------------- Heat Dissipation 134 Coolant Potential 120 Energy Generation 55 Energy Capacity 1300 Matter Stores 696 Matter Capacity 800 Sight Range 23 Robot Scan Range 20 Terrain Scan Density 10 Additional Mass Support 12 Armor Coverage 800 Resistance: KI 25 Resistance: TH 50 Propulsion Shielding 90 Weapon Cycling 30 Phase Shifting 20 Evasion (%) 85 Targeting Accuracy 8 Melee Accuracy 12 Core Analysis 12 Armor Integrity Analysis 40 Recoil Reduction 4 Kinecelleration 50 Offensive Hacking 28 Defensive Hacking 32 Item Schematics ----------------- Assault Drone Bay | -5/Zhirov | Free Exp. Heat Sink | -5/Zhirov | Free Exp. Optical Array | -5/Zhirov | Free Imp. Arc Thrower | -5/Zhirov | Free Robot Schematics ------------------ None Fabricated ------------ KE Penetrator | x2 | -6/Factory | Preloaded Repaired ---------- Neutrino Core | 23% | -5/Factory Studied --------- Spread Laser | -9/Materials | Hacked Imp. Ion Engine | -9/Materials | Hacked Field Laser | -8/Materials | Hacked Lgt. Ion Engine | -8/Materials | Hacked Flexi-carbon Leg | -6/Factory | Hacked KE Penetrator | -6/Factory | Hacked Thunder Leg | -5/Factory | Hacked Myomer Leg | -5/Factory | Hacked Alien Tech Used ----------------- Integrated Dissipator Transdimensional Reconstructor Achievements -------------- Great Explorer Off Switch Recruitment Drive Showdown Challenges ------------ None Game ------ Seed LaunchSingularityCompanion Manual? 0 Play Time 04:23:14 Cumulative 425.5 hours Start 2025.12.23 @ 23:35:33 End 2025.12.24 @ 04:08:53 Sessions 1 Manual Loads 0 Difficulty Rogue Special Mode None Game No. 199 Rogue 199 Adventurer 0 Explorer 0 Win Type - Total 12 Types 9/0/2/0/0/0/0/0/0/1 Lore% 84 Gallery% 82 Achievement% 58 Wizard Run 0 Options --------- Layout 1 ASCII 0 Keyboard 0 Movement Mouse Keybinds 0 Fullscreen 1 Font 24/Smallcaps Map View 50x35 Zoom Use 0% Tactical HUD 1 Map Filters NONE Filters NONE Steam 1 RUN: 0e59d3e1-8991-4bb4-bc08-44ba33ff202c